Publisher Label,Publisher URI,"Supplier","Invoice ","Amount (£)","Purpose","Transaction Number","Payment Date","Organisational Unit","Cost Centre(T)","Internal category number"
"Wolverhampton City Council","http://opendatacommunities.org/id/metropolitan-district-council/wolverhampton","Greenhous Commercials Limited","13475389","3.07","Equipment - Purchase","190313935","22/02/2017","Fleet Services","Fleet Management","R4000"
"Wolverhampton City Council","http://opendatacommunities.org/id/metropolitan-district-council/wolverhampton","Greenhous Commercials Limited","1304716","-80","Equipment - Purchase","190313924","22/02/2017","Fleet Services","Fleet Management","R4000"
"Wolverhampton City Council","http://opendatacommunities.org/id/metropolitan-district-council/wolverhampton","Greenhous Commercials Limited","1304656","-200","Equipment - Purchase","190313922","22/02/2017","Fleet Services","Fleet Management","R4000"
"Wolverhampton City Council","http://opendatacommunities.org/id/metropolitan-district-council/wolverhampton","Greenhous Commercials Limited","13475097","49.5","Equipment - Purchase","190313932","22/02/2017","Fleet Services","Fleet Management","R4000"
"Wolverhampton City Council","http://opendatacommunities.org/id/metropolitan-district-council/wolverhampton","Greenhous Commercials Limited","13475097","80","Equipment - Purchase","190313932","22/02/2017","Fleet Services","Fleet Management","R4000"
"Wolverhampton City Council","http://opendatacommunities.org/id/metropolitan-district-council/wolverhampton","Greenhous Commercials Limited","13470326","23.22","Equipment - Purchase","190313929","22/02/2017","Fleet Services","Fleet Management","R4000"
"Wolverhampton City Council","http://opendatacommunities.org/id/metropolitan-district-council/wolverhampton","Greenhous Commercials Limited","13470326","68","Equipment - Purchase","190313929","22/02/2017","Fleet Services","Fleet Management","R4000"
"Wolverhampton City Council","http://opendatacommunities.org/id/metropolitan-district-council/wolverhampton","Greenhous Commercials Limited","1304694","-11.75","Equipment - Purchase","190313923","22/02/2017","Fleet Services","Fleet Management","R4000"
"Wolverhampton City Council","http://opendatacommunities.org/id/metropolitan-district-council/wolverhampton","Greenhous Commercials Limited","1304718","-80","Equipment - Purchase","190313925","22/02/2017","Fleet Services","Fleet Management","R4000"
"Wolverhampton City Council","http://opendatacommunities.org/id/metropolitan-district-council/wolverhampton","Greenhous Commercials Limited","13475274","307.04","Equipment - Purchase","190313933","22/02/2017","Fleet Services","Fleet Management","R4000"
"Wolverhampton City Council","http://opendatacommunities.org/id/metropolitan-district-council/wolverhampton","Greenhous Commercials Limited","13475274","2.97","Equipment - Purchase","190313933","22/02/2017","Fleet Services","Fleet Management","R4000"
"Wolverhampton City Council","http://opendatacommunities.org/id/metropolitan-district-council/wolverhampton","Greenhous Commercials Limited","13475274","50.58","Equipment - Purchase","190313933","22/02/2017","Fleet Services","Fleet Management","R4000"
"Wolverhampton City Council","http://opendatacommunities.org/id/metropolitan-district-council/wolverhampton","Greenhous Commercials Limited","13476281","15.95","Equipment - Purchase","190313936","22/02/2017","Fleet Services","Fleet Management","R4000"
"Wolverhampton City Council","http://opendatacommunities.org/id/metropolitan-district-council/wolverhampton","Greenhous Commercials Limited","13469959","295","Equipment - Purchase","190313927","22/02/2017","Fleet Services","Fleet Management","R4000"
"Wolverhampton City Council","http://opendatacommunities.org/id/metropolitan-district-council/wolverhampton","Greenhous Commercials Limited","13469959","80","Equipment - Purchase","190313927","22/02/2017","Fleet Services","Fleet Management","R4000"
"Wolverhampton City Council","http://opendatacommunities.org/id/metropolitan-district-council/wolverhampton","Greenhous Commercials Limited","13470290","80","Equipment - Purchase","190313928","22/02/2017","Fleet Services","Fleet Management","R4000"
"Wolverhampton City Council","http://opendatacommunities.org/id/metropolitan-district-council/wolverhampton","Greenhous Commercials Limited","13470290","295","Equipment - Purchase","190313928","22/02/2017","Fleet Services","Fleet Management","R4000"
"Wolverhampton City Council","http://opendatacommunities.org/id/metropolitan-district-council/wolverhampton","Greenhous Commercials Limited","13470630","11.75","Equipment - Purchase","190313930","22/02/2017","Fleet Services","Fleet Management","R4000"
"Wolverhampton City Council","http://opendatacommunities.org/id/metropolitan-district-council/wolverhampton","Greenhous Commercials Limited","13470949","12.5","Equipment - Purchase","190313931","22/02/2017","Fleet Services","Fleet Management","R4000"
"Wolverhampton City Council","http://opendatacommunities.org/id/metropolitan-district-council/wolverhampton","Greenhous Commercials Limited","1304109","-165","Equipment - Purchase","190312427","17/02/2017","Fleet Services","Fleet Management","R4000"
"Wolverhampton City Council","http://opendatacommunities.org/id/metropolitan-district-council/wolverhampton","Greenhous Commercials Limited","1305181","-170","Equipment - Purchase","190312428","17/02/2017","Fleet Services","Fleet Management","R4000"
"Wolverhampton City Council","http://opendatacommunities.org/id/metropolitan-district-council/wolverhampton","Greenhous Commercials Limited","13474200","256","Equipment - Purchase","190312429","17/02/2017","Fleet Services","Fleet Management","R4000"
"Wolverhampton City Council","http://opendatacommunities.org/id/metropolitan-district-council/wolverhampton","Greenhous Commercials Limited","13474204","5.62","Equipment - Purchase","190312430","17/02/2017","Fleet Services","Fleet Management","R4000"
"Wolverhampton City Council","http://opendatacommunities.org/id/metropolitan-district-council/wolverhampton","Greenhous Commercials Limited","13474204","96","Equipment - Purchase","190312430","17/02/2017","Fleet Services","Fleet Management","R4000"
"Wolverhampton City Council","http://opendatacommunities.org/id/metropolitan-district-council/wolverhampton","Ground Investigation & Piling Limited","CEB/25273","1,913.60","Services - Professional Fees","130154844","17/02/2017","Housing Revenue Account","HRA General","R4400"
"Wolverhampton City Council","http://opendatacommunities.org/id/metropolitan-district-council/wolverhampton","Ground Investigation & Piling Limited","32861","2,916.40","Services - Professional Fees","130156024","17/02/2017","Housing Revenue Account","HRA General","R4400"
"Wolverhampton City Council","http://opendatacommunities.org/id/metropolitan-district-council/wolverhampton","Ground Investigation & Piling Limited","32862","2,244.66","Services - Professional Fees","130156025","17/02/2017","Housing Revenue Account","HRA General","R4400"
"Wolverhampton City Council","http://opendatacommunities.org/id/metropolitan-district-council/wolverhampton","Ground Investigation & Piling Limited","CEB/25274","3,098.80","Services - Professional Fees","130154082","12/02/2017","Housing Revenue Account","HRA General","R4400"
"Wolverhampton City Council","http://opendatacommunities.org/id/metropolitan-district-council/wolverhampton","Ground Investigation & Piling Limited","CEB/25276","3,121.40","Services - Professional Fees","130153385","01/02/2017","Housing Revenue Account","HRA General","R4400"
"Wolverhampton City Council","http://opendatacommunities.org/id/metropolitan-district-council/wolverhampton","Ground Investigation & Piling Limited","32853","4,272.70","Services - Professional Fees","130156275","17/02/2017","Housing Revenue Account","HRA General","R4400"
"Wolverhampton City Council","http://opendatacommunities.org/id/metropolitan-district-council/wolverhampton","Guest Motors Limited","13028260","155.57","Equipment - Purchase","190309485","08/02/2017","Fleet Services","Fleet Management","R4000"
"Wolverhampton City Council","http://opendatacommunities.org/id/metropolitan-district-council/wolverhampton","Guest Motors Limited","13028265","402.8","Equipment - Purchase","190309486","08/02/2017","Fleet Services","Fleet Management","R4000"
"Wolverhampton City Council","http://opendatacommunities.org/id/metropolitan-district-council/wolverhampton","Guest Motors Limited","13028299","799.59","Equipment - Purchase","190309487","08/02/2017","Fleet Services","Fleet Management","R4000"
"Wolverhampton City Council","http://opendatacommunities.org/id/metropolitan-district-council/wolverhampton","Guest Motors Limited","13028299","0.84","Equipment - Purchase","190309487","08/02/2017","Fleet Services","Fleet Management","R4000"
"Wolverhampton City Council","http://opendatacommunities.org/id/metropolitan-district-council/wolverhampton","Guest Motors Limited","13028326","145.46","Equipment - Purchase","190309488","08/02/2017","Fleet Services","Fleet Management","R4000"
"Wolverhampton City Council","http://opendatacommunities.org/id/metropolitan-district-council/wolverhampton","Guest Motors Limited","13028326","59.15","Equipment - Purchase","190309488","08/02/2017","Fleet Services","Fleet Management","R4000"
"Wolverhampton City Council","http://opendatacommunities.org/id/metropolitan-district-council/wolverhampton","Guest Motors Limited","13028326","27.79","Equipment - Purchase","190309488","08/02/2017","Fleet Services","Fleet Management","R4000"
"Wolverhampton City Council","http://opendatacommunities.org/id/metropolitan-district-council/wolverhampton","Guest Motors Limited","13028389","57.97","Equipment - Purchase","190309489","08/02/2017","Fleet Services","Fleet Management","R4000"
"Wolverhampton City Council","http://opendatacommunities.org/id/metropolitan-district-council/wolverhampton","Guest Motors Limited","13513007","170","Services - Professional Fees","190309492","08/02/2017","Fleet Services","Fleet Management","R4400"
"Wolverhampton City Council","http://opendatacommunities.org/id/metropolitan-district-council/wolverhampton","Guest Motors Limited","13513185","170","Services - Professional Fees","190314131","24/02/2017","Fleet Services","Fleet Management","R4400"
"Wolverhampton City Council","http://opendatacommunities.org/id/metropolitan-district-council/wolverhampton","Guest Motors Limited","13027979","15.88","Equipment - Purchase","190307565","03/02/2017","Fleet Services","Fleet Management","R4000"
"Wolverhampton City Council","http://opendatacommunities.org/id/metropolitan-district-council/wolverhampton","Guest Motors Limited","13028086","15.88","Equipment - Purchase","190307566","03/02/2017","Fleet Services","Fleet Management","R4000"
"Wolverhampton City Council","http://opendatacommunities.org/id/metropolitan-district-council/wolverhampton","Guest Motors Limited","13028090","97.82","Equipment - Purchase","190307567","03/02/2017","Fleet Services","Fleet Management","R4000"
"Wolverhampton City Council","http://opendatacommunities.org/id/metropolitan-district-council/wolverhampton","Guest Motors Limited","13028093","5.29","Equipment - Purchase","190307568","03/02/2017","Fleet Services","Fleet Management","R4000"
"Wolverhampton City Council","http://opendatacommunities.org/id/metropolitan-district-council/wolverhampton","Guest Motors Limited","13028303","66.5","Equipment - Purchase","190307569","03/02/2017","Fleet Services","Fleet Management","R4000"
"Wolverhampton City Council","http://opendatacommunities.org/id/metropolitan-district-council/wolverhampton","Guest Motors Limited","13027975","120","Equipment - Purchase","190307564","03/02/2017","Fleet Services","Fleet Management","R4000"
"Wolverhampton City Council","http://opendatacommunities.org/id/metropolitan-district-council/wolverhampton","Guest Motors Limited","13028259","42.17","Equipment - Purchase","190313920","22/02/2017","Fleet Services","Fleet Management","R4000"
"Wolverhampton City Council","http://opendatacommunities.org/id/metropolitan-district-council/wolverhampton","Guest Motors Limited","13028889","107.9","Equipment - Purchase","190313921","22/02/2017","Fleet Services","Fleet Management","R4000"
"Wolverhampton City Council","http://opendatacommunities.org/id/metropolitan-district-council/wolverhampton","Guest Motors Limited","13028889","21.24","Equipment - Purchase","190313921","22/02/2017","Fleet Services","Fleet Management","R4000"
"Wolverhampton City Council","http://opendatacommunities.org/id/metropolitan-district-council/wolverhampton","Guest Motors Limited","13028889","13.19","Equipment - Purchase","190313921","22/02/2017","Fleet Services","Fleet Management","R4000"
"Wolverhampton City Council","http://opendatacommunities.org/id/metropolitan-district-council/wolverhampton","Guest Motors Limited","13028572","52.92","Equipment - Purchase","190310286","12/02/2017","Fleet Services","Fleet Management","R4000"
"Wolverhampton City Council","http://opendatacommunities.org/id/metropolitan-district-council/wolverhampton","Guest Motors Limited","13028572","21.21","Equipment - Purchase","190310286","12/02/2017","Fleet Services","Fleet Management","R4000"
"Wolverhampton City Council","http://opendatacommunities.org/id/metropolitan-district-council/wolverhampton","Guest Motors Limited","13028572","27.79","Equipment - Purchase","190310286","12/02/2017","Fleet Services","Fleet Management","R4000"
"Wolverhampton City Council","http://opendatacommunities.org/id/metropolitan-district-council/wolverhampton","Guest Motors Limited","13028572","65.51","Equipment - Purchase","190310286","12/02/2017","Fleet Services","Fleet Management","R4000"
"Wolverhampton City Council","http://opendatacommunities.org/id/metropolitan-district-council/wolverhampton","Guest Motors Limited","13513006","187.15","Services - Professional Fees","190310294","12/02/2017","Fleet Services","Fleet Management","R4400"
"Wolverhampton City Council","http://opendatacommunities.org/id/metropolitan-district-council/wolverhampton","Guest Motors Limited","13513006","42.5","Services - Professional Fees","190310294","12/02/2017","Fleet Services","Fleet Management","R4400"
"Wolverhampton City Council","http://opendatacommunities.org/id/metropolitan-district-council/wolverhampton","Guest Motors Limited","13513006","170","Services - Professional Fees","190310294","12/02/2017","Fleet Services","Fleet Management","R4400"
"Wolverhampton City Council","http://opendatacommunities.org/id/metropolitan-district-council/wolverhampton","Gullivers Truck Hire Limited","1701/21921","749","Hire of Vehicles","190311163","15/02/2017","Fleet Services","Fleet Management","R3200"
"Wolverhampton City Council","http://opendatacommunities.org/id/metropolitan-district-council/wolverhampton","H Jenkinson & Company Ltd","SINV00749198","3,267.00","Furniture","130157243","12/02/2017","Facilities Management","Civic Centre","R4004"
"Wolverhampton City Council","http://opendatacommunities.org/id/metropolitan-district-council/wolverhampton","H Jenkinson & Company Ltd","SINV00748898","54.86","Furniture","130156893","08/02/2017","Skills","Connexions Contract","R4004"
"Wolverhampton City Council","http://opendatacommunities.org/id/metropolitan-district-council/wolverhampton","H Jenkinson & Company Ltd","SINV00748899","956.43","Furniture","130156894","08/02/2017","Highways Maintenance","Patching","R4004"
"Wolverhampton City Council","http://opendatacommunities.org/id/metropolitan-district-council/wolverhampton","Hadleigh Technical Support Limited","8904","2,064.00","Equipment - Purchase","130158806","17/02/2017","Standards and Vulnerable Pupils","SEN Early Years Team","R4000"
"Wolverhampton City Council","http://opendatacommunities.org/id/metropolitan-district-council/wolverhampton","Hags-Smp Limited Rss Playmakers","CR001282","-510","Equipment - R & M","130157514","24/02/2017","Environmental Maintenance","Parks - South West Area Management","R4003"
"Wolverhampton City Council","http://opendatacommunities.org/id/metropolitan-district-council/wolverhampton","Hags-Smp Limited Rss Playmakers","47660","379.44","Equipment - R & M","130157735","15/02/2017","Environmental Maintenance","Parks - East Area Management","R4003"
"Wolverhampton City Council","http://opendatacommunities.org/id/metropolitan-district-council/wolverhampton","Hags-Smp Limited Rss Playmakers","042473 replacement invoice","116.15","Equipment - R & M","130157734","15/02/2017","Environmental Maintenance","Parks - South West Area Management","R4003"
"Wolverhampton City Council","http://opendatacommunities.org/id/metropolitan-district-council/wolverhampton","Hags-Smp Limited Rss Playmakers","48187","95","Equipment - R & M","130156027","15/02/2017","Environmental Maintenance","Parks - East Area Management","R4003"
"Wolverhampton City Council","http://opendatacommunities.org/id/metropolitan-district-council/wolverhampton","Hags-Smp Limited Rss Playmakers","CR001213","-178.5","Equipment - R & M","130157513","15/02/2017","Environmental Maintenance","Parks - East Area Management","R4003"
"Wolverhampton City Council","http://opendatacommunities.org/id/metropolitan-district-council/wolverhampton","Hags-Smp Limited Rss Playmakers","47948","456.25","Equipment - R & M","130154845","01/02/2017","Environmental Maintenance","Parks - East Area Management","R4003"
"Wolverhampton City Council","http://opendatacommunities.org/id/metropolitan-district-council/wolverhampton","Hags-Smp Limited Rss Playmakers","48920","117.6","Equipment - R & M","130153587","03/02/2017","Environmental Maintenance","Parks - South West Area Management","R4003"
"Wolverhampton City Council","http://opendatacommunities.org/id/metropolitan-district-council/wolverhampton","Hags-Smp Limited Rss Playmakers","48921","115","Equipment - R & M","130153588","03/02/2017","Environmental Maintenance","Parks - South West Area Management","R4003"
"Wolverhampton City Council","http://opendatacommunities.org/id/metropolitan-district-council/wolverhampton","Hags-Smp Limited Rss Playmakers","49351","265.26","Equipment - R & M","130157507","24/02/2017","Environmental Maintenance","Parks - East Area Management","R4003"
"Wolverhampton City Council","http://opendatacommunities.org/id/metropolitan-district-council/wolverhampton","Hags-Smp Limited Rss Playmakers","49345","300.84","Equipment - R & M","130157506","24/02/2017","Environmental Maintenance","Parks - East Area Management","R4003"
"Wolverhampton City Council","http://opendatacommunities.org/id/metropolitan-district-council/wolverhampton","Hags-Smp Limited Rss Playmakers","49228","87.5","Equipment - R & M","130156035","17/02/2017","Environmental Maintenance","Parks - South West Area Management","R4003"
"Wolverhampton City Council","http://opendatacommunities.org/id/metropolitan-district-council/wolverhampton","Hags-Smp Limited Rss Playmakers","49229","82.92","Equipment - R & M","130156036","17/02/2017","Environmental Maintenance","Parks - East Area Management","R4003"
"Wolverhampton City Council","http://opendatacommunities.org/id/metropolitan-district-council/wolverhampton","Hags-Smp Limited Rss Playmakers","49180","175","Equipment - R & M","130156031","17/02/2017","Environmental Maintenance","Parks - East Area Management","R4003"
"Wolverhampton City Council","http://opendatacommunities.org/id/metropolitan-district-council/wolverhampton","Hags-Smp Limited Rss Playmakers","49182","246.4","Equipment - R & M","130156033","17/02/2017","Environmental Maintenance","Parks - East Area Management","R4003"
"Wolverhampton City Council","http://opendatacommunities.org/id/metropolitan-district-council/wolverhampton","Hags-Smp Limited Rss Playmakers","49183","90","Equipment - R & M","130156034","17/02/2017","Environmental Maintenance","Parks - East Area Management","R4003"
"Wolverhampton City Council","http://opendatacommunities.org/id/metropolitan-district-council/wolverhampton","Hags-Smp Limited Rss Playmakers","48327","1,020.00","Equipment - R & M","130157505","12/02/2017","Environmental Maintenance","Parks - South West Area Management","R4003"
"Wolverhampton City Council","http://opendatacommunities.org/id/metropolitan-district-council/wolverhampton","Hags-Smp Limited Rss Playmakers","46601","178.5","Equipment - R & M","130144078","12/02/2017","Environmental Maintenance","Parks - East Area Management","R4003"
"Wolverhampton City Council","http://opendatacommunities.org/id/metropolitan-district-council/wolverhampton","Hags-Smp Limited Rss Playmakers","47793","178.5","Equipment - R & M","130145402","12/02/2017","Environmental Maintenance","Parks - East Area Management","R4003"
"Wolverhampton City Council","http://opendatacommunities.org/id/metropolitan-district-council/wolverhampton","Hags-Smp Limited Rss Playmakers","49110","23.5","Equipment - R & M","130154854","12/02/2017","Environmental Maintenance","Parks - East Area Management","R4003"
"Wolverhampton City Council","http://opendatacommunities.org/id/metropolitan-district-council/wolverhampton","Hags-Smp Limited Rss Playmakers","49081","45.6","Equipment - R & M","130154850","12/02/2017","Environmental Maintenance","Parks - East Area Management","R4003"
"Wolverhampton City Council","http://opendatacommunities.org/id/metropolitan-district-council/wolverhampton","Hags-Smp Limited Rss Playmakers","49108","5,960.00","Equipment - R & M","130154852","12/02/2017","Environmental Maintenance","Parks - South West Area Management","R4003"
"Wolverhampton City Council","http://opendatacommunities.org/id/metropolitan-district-council/wolverhampton","Hags-Smp Limited Rss Playmakers","49097","22,339.80","R&M - Departmental planned (external)","130156030","12/02/2017","Environmental Maintenance","Parks / Open Spaces - Repairs & Maintenance","R2001"
"Wolverhampton City Council","http://opendatacommunities.org/id/metropolitan-district-council/wolverhampton","Hags-Smp Limited Rss Playmakers","45600","675","Equipment - R & M","130157503","12/02/2017","Environmental Maintenance","Parks - East Area Management","R4003"
"Wolverhampton City Council","http://opendatacommunities.org/id/metropolitan-district-council/wolverhampton","Hags-Smp Limited Rss Playmakers","49111","146.25","Equipment - R & M","130154855","12/02/2017","Environmental Maintenance","Parks - South West Area Management","R4003"
"Wolverhampton City Council","http://opendatacommunities.org/id/metropolitan-district-council/wolverhampton","Hags-Smp Limited Rss Playmakers","49112","77.5","Equipment - R & M","130154856","12/02/2017","Environmental Maintenance","Parks - South West Area Management","R4003"
"Wolverhampton City Council","http://opendatacommunities.org/id/metropolitan-district-council/wolverhampton","Hags-Smp Limited Rss Playmakers","49080","64.8","Equipment - R & M","130154849","12/02/2017","Environmental Maintenance","Parks - East Area Management","R4003"
"Wolverhampton City Council","http://opendatacommunities.org/id/metropolitan-district-council/wolverhampton","Hags-Smp Limited Rss Playmakers","49031","40","Equipment - R & M","130154848","12/02/2017","Environmental Maintenance","Parks - East Area Management","R4003"
"Wolverhampton City Council","http://opendatacommunities.org/id/metropolitan-district-council/wolverhampton","Hags-Smp Limited Rss Playmakers","49109","3,220.00","Equipment - R & M","130154853","12/02/2017","Environmental Maintenance","Parks - South West Area Management","R4003"
"Wolverhampton City Council","http://opendatacommunities.org/id/metropolitan-district-council/wolverhampton","Hags-Smp Limited Rss Playmakers","45602","31.32","Equipment - R & M","130157504","12/02/2017","Environmental Maintenance","Parks - East Area Management","R4003"
"Wolverhampton City Council","http://opendatacommunities.org/id/metropolitan-district-council/wolverhampton","Hags-Smp Limited Rss Playmakers","44757","945","Equipment - R & M","130157502","12/02/2017","Environmental Maintenance","Parks - East Area Management","R4003"
"Wolverhampton City Council","http://opendatacommunities.org/id/metropolitan-district-council/wolverhampton","Hags-Smp Limited Rss Playmakers","48917","87.26","Equipment - R & M","130156029","12/02/2017","Environmental Maintenance","Parks - East Area Management","R4003"
"Wolverhampton City Council","http://opendatacommunities.org/id/metropolitan-district-council/wolverhampton","Hags-Smp Limited Rss Playmakers","49094","89.25","Equipment - R & M","130154851","12/02/2017","Environmental Maintenance","Parks - South West Area Management","R4003"
"Wolverhampton City Council","http://opendatacommunities.org/id/metropolitan-district-council/wolverhampton","Hags-Smp Limited Rss Playmakers","49025","910.05","Equipment - R & M","130154847","12/02/2017","Environmental Maintenance","Parks - South West Area Management","R4003"
"Wolverhampton City Council","http://opendatacommunities.org/id/metropolitan-district-council/wolverhampton","Hags-Smp Limited Rss Playmakers","48796","672","Equipment - R & M","130156028","15/02/2017","Environmental Maintenance","Parks - East Area Management","R4003"
"Wolverhampton City Council","http://opendatacommunities.org/id/metropolitan-district-council/wolverhampton","Hags-Smp Limited Rss Playmakers","48796","30","Equipment - R & M","130156028","15/02/2017","Environmental Maintenance","Parks - East Area Management","R4003"
"Wolverhampton City Council","http://opendatacommunities.org/id/metropolitan-district-council/wolverhampton","Hall Green Secondary School","P13669420170220","800","Grant Payments to Individuals","190313799","22/02/2017","Looked After Children","LAC Education Team (LACE)","R6402"
"Wolverhampton City Council","http://opendatacommunities.org/id/metropolitan-district-council/wolverhampton","Harold L. Smith Transmissions Limited","245103","3,875.00","Services - Professional Fees","190311781","15/02/2017","Fleet Services","Fleet Management","R4400"
"Wolverhampton City Council","http://opendatacommunities.org/id/metropolitan-district-council/wolverhampton","Harold L. Smith Transmissions Limited","245243","195","Services - Professional Fees","190314127","24/02/2017","Fleet Services","Fleet Management","R4400"
"Wolverhampton City Council","http://opendatacommunities.org/id/metropolitan-district-council/wolverhampton","Harrison Grant","B5/17","6,171.97","Acquisition of Land and Buildings","130157244","17/02/2017","-","Site Remediation Farndale","C1000"
"Wolverhampton City Council","http://opendatacommunities.org/id/metropolitan-district-council/wolverhampton","Hartshorne Motor Services Limited","2189627-01","278.73","Services - Professional Fees","190309514","08/02/2017","Fleet Services","Fleet Management","R4400"
"Wolverhampton City Council","http://opendatacommunities.org/id/metropolitan-district-council/wolverhampton","Hartshorne Motor Services Limited","2189627-01","3,399.45","Services - Professional Fees","190309514","08/02/2017","Fleet Services","Fleet Management","R4400"
"Wolverhampton City Council","http://opendatacommunities.org/id/metropolitan-district-council/wolverhampton","Hartshorne Motor Services Limited","2189627-01","581.56","Services - Professional Fees","190309514","08/02/2017","Fleet Services","Fleet Management","R4400"
"Wolverhampton City Council","http://opendatacommunities.org/id/metropolitan-district-council/wolverhampton","Hartshorne Motor Services Limited","2189627-01","26.66","Services - Professional Fees","190309514","08/02/2017","Fleet Services","Fleet Management","R4400"
"Wolverhampton City Council","http://opendatacommunities.org/id/metropolitan-district-council/wolverhampton","Hartshorne Motor Services Limited","2189627-01","39.74","Services - Professional Fees","190309514","08/02/2017","Fleet Services","Fleet Management","R4400"
"Wolverhampton City Council","http://opendatacommunities.org/id/metropolitan-district-council/wolverhampton","Hartshorne Motor Services Limited","2189627-01","44.46","Services - Professional Fees","190309514","08/02/2017","Fleet Services","Fleet Management","R4400"
"Wolverhampton City Council","http://opendatacommunities.org/id/metropolitan-district-council/wolverhampton","Hartshorne Motor Services Limited","2189627-01","7.44","Services - Professional Fees","190309514","08/02/2017","Fleet Services","Fleet Management","R4400"
"Wolverhampton City Council","http://opendatacommunities.org/id/metropolitan-district-council/wolverhampton","Hartshorne Motor Services Limited","2189627-01","8.82","Services - Professional Fees","190309514","08/02/2017","Fleet Services","Fleet Management","R4400"
"Wolverhampton City Council","http://opendatacommunities.org/id/metropolitan-district-council/wolverhampton","Hartshorne Motor Services Limited","2189627-01","0.54","Services - Professional Fees","190309514","08/02/2017","Fleet Services","Fleet Management","R4400"
"Wolverhampton City Council","http://opendatacommunities.org/id/metropolitan-district-council/wolverhampton","Hartshorne Motor Services Limited","2189627-01","2.24","Services - Professional Fees","190309514","08/02/2017","Fleet Services","Fleet Management","R4400"
"Wolverhampton City Council","http://opendatacommunities.org/id/metropolitan-district-council/wolverhampton","Hartshorne Motor Services Limited","2189627-01","225","Services - Professional Fees","190309514","08/02/2017","Fleet Services","Fleet Management","R4400"
"Wolverhampton City Council","http://opendatacommunities.org/id/metropolitan-district-council/wolverhampton","Hartshorne Motor Services Limited","2189627-01","95.4","Services - Professional Fees","190309514","08/02/2017","Fleet Services","Fleet Management","R4400"
"Wolverhampton City Council","http://opendatacommunities.org/id/metropolitan-district-council/wolverhampton","Hartshorne Motor Services Limited","2189627-01","32.09","Services - Professional Fees","190309514","08/02/2017","Fleet Services","Fleet Management","R4400"
"Wolverhampton City Council","http://opendatacommunities.org/id/metropolitan-district-council/wolverhampton","Hartshorne Motor Services Limited","2189627-01","1,713.96","Services - Professional Fees","190309514","08/02/2017","Fleet Services","Fleet Management","R4400"
"Wolverhampton City Council","http://opendatacommunities.org/id/metropolitan-district-council/wolverhampton","Hartshorne Motor Services Limited","2189627-01","534.22","Services - Professional Fees","190309514","08/02/2017","Fleet Services","Fleet Management","R4400"
"Wolverhampton City Council","http://opendatacommunities.org/id/metropolitan-district-council/wolverhampton","Hartshorne Motor Services Limited","2189627-01","354.72","Services - Professional Fees","190309514","08/02/2017","Fleet Services","Fleet Management","R4400"
"Wolverhampton City Council","http://opendatacommunities.org/id/metropolitan-district-council/wolverhampton","Hartshorne Motor Services Limited","2189627-01","109.86","Services - Professional Fees","190309514","08/02/2017","Fleet Services","Fleet Management","R4400"
"Wolverhampton City Council","http://opendatacommunities.org/id/metropolitan-district-council/wolverhampton","Hartshorne Motor Services Limited","2189627-01","96.27","Services - Professional Fees","190309514","08/02/2017","Fleet Services","Fleet Management","R4400"
"Wolverhampton City Council","http://opendatacommunities.org/id/metropolitan-district-council/wolverhampton","Hartshorne Motor Services Limited","2189627-01","9.3","Services - Professional Fees","190309514","08/02/2017","Fleet Services","Fleet Management","R4400"
"Wolverhampton City Council","http://opendatacommunities.org/id/metropolitan-district-council/wolverhampton","Hartshorne Motor Services Limited","2189627-01","96.84","Services - Professional Fees","190309514","08/02/2017","Fleet Services","Fleet Management","R4400"
"Wolverhampton City Council","http://opendatacommunities.org/id/metropolitan-district-council/wolverhampton","Hartshorne Motor Services Limited","2189627-01","1.56","Services - Professional Fees","190309514","08/02/2017","Fleet Services","Fleet Management","R4400"
"Wolverhampton City Council","http://opendatacommunities.org/id/metropolitan-district-council/wolverhampton","Hartshorne Motor Services Limited","2189627-01","41.14","Services - Professional Fees","190309514","08/02/2017","Fleet Services","Fleet Management","R4400"
"Wolverhampton City Council","http://opendatacommunities.org/id/metropolitan-district-council/wolverhampton","Hartshorne Motor Services Limited","2189627-01","96.24","Services - Professional Fees","190309514","08/02/2017","Fleet Services","Fleet Management","R4400"
"Wolverhampton City Council","http://opendatacommunities.org/id/metropolitan-district-council/wolverhampton","Hartshorne Motor Services Limited","2189627-01","2.1","Services - Professional Fees","190309514","08/02/2017","Fleet Services","Fleet Management","R4400"
"Wolverhampton City Council","http://opendatacommunities.org/id/metropolitan-district-council/wolverhampton","Hartshorne Motor Services Limited","2189627-01","0.3","Services - Professional Fees","190309514","08/02/2017","Fleet Services","Fleet Management","R4400"
"Wolverhampton City Council","http://opendatacommunities.org/id/metropolitan-district-council/wolverhampton","Hartshorne Motor Services Limited","2189627-01","34.08","Services - Professional Fees","190309514","08/02/2017","Fleet Services","Fleet Management","R4400"
"Wolverhampton City Council","http://opendatacommunities.org/id/metropolitan-district-council/wolverhampton","Hartshorne Motor Services Limited","2189627-01","95.2","Services - Professional Fees","190309514","08/02/2017","Fleet Services","Fleet Management","R4400"
"Wolverhampton City Council","http://opendatacommunities.org/id/metropolitan-district-council/wolverhampton","Hartshorne Motor Services Limited","2189627-01","24.61","Services - Professional Fees","190309514","08/02/2017","Fleet Services","Fleet Management","R4400"
"Wolverhampton City Council","http://opendatacommunities.org/id/metropolitan-district-council/wolverhampton","Hays Education","1007215670","34.88","Agency Staff","130154083","12/02/2017","Early Intervention","EIP Locality 7 � Low Hill","R1100"
"Wolverhampton City Council","http://opendatacommunities.org/id/metropolitan-district-council/wolverhampton","Hays Education","1007216205","34.88","Agency Staff","130154084","12/02/2017","Early Intervention","EIP Locality 7 � Low Hill","R1100"
"Wolverhampton City Council","http://opendatacommunities.org/id/metropolitan-district-council/wolverhampton","Hays Education","1007224207","34.88","Agency Staff","130154258","12/02/2017","Early Intervention","EIP Locality 7 � Low Hill","R1100"
"Wolverhampton City Council","http://opendatacommunities.org/id/metropolitan-district-council/wolverhampton","Hays Education","1007236545","34.88","Agency Staff","130155037","17/02/2017","Early Intervention","EIP Locality 7 � Low Hill","R1100"
"Wolverhampton City Council","http://opendatacommunities.org/id/metropolitan-district-council/wolverhampton","Hays Specialist Recruitment Limited","1007224930","27.64","Agency Staff","130155309","17/02/2017","Early Intervention","EIP Locality 1 - Eastfields","R1100"
"Wolverhampton City Council","http://opendatacommunities.org/id/metropolitan-district-council/wolverhampton","Hays Specialist Recruitment Limited","1007220813","453.12","Agency Staff","130155310","17/02/2017","The Hub","Payments Team","R1100"
"Wolverhampton City Council","http://opendatacommunities.org/id/metropolitan-district-council/wolverhampton","Hays Specialist Recruitment Limited","1007238601","245.76","Agency Staff","130155039","17/02/2017","The Hub","Payroll/HR","R1100"
"Wolverhampton City Council","http://opendatacommunities.org/id/metropolitan-district-council/wolverhampton","Hays Specialist Recruitment Limited","1007211888","1,246.90","Agency Staff","130155038","17/02/2017","Estates and Valuations","Estates and Valuations Team","R1100"
"Wolverhampton City Council","http://opendatacommunities.org/id/metropolitan-district-council/wolverhampton","Hays Specialist Recruitment Limited","1007056240","1,246.90","Services - Professional Fees","130148555","08/02/2017","Estates and Valuations","Estates and Valuations Team","R4400"
"Wolverhampton City Council","http://opendatacommunities.org/id/metropolitan-district-council/wolverhampton","Hays Specialist Recruitment Limited","1007056241","1,246.90","Services - Professional Fees","130148764","08/02/2017","Estates and Valuations","Estates and Valuations Team","R4400"
"Wolverhampton City Council","http://opendatacommunities.org/id/metropolitan-district-council/wolverhampton","Hays Specialist Recruitment Limited","1007084436","1,246.90","Services - Professional Fees","130149438","08/02/2017","Estates and Valuations","Estates and Valuations Team","R4400"
"Wolverhampton City Council","http://opendatacommunities.org/id/metropolitan-district-council/wolverhampton","Hays Specialist Recruitment Limited","1007214393","491.36","Agency Staff","130154261","12/02/2017","The Hub","Payroll/HR","R1100"
"Wolverhampton City Council","http://opendatacommunities.org/id/metropolitan-district-council/wolverhampton","Hays Specialist Recruitment Limited","1007105286","1,246.90","Services - Professional Fees","130150854","12/02/2017","Estates and Valuations","Estates and Valuations Team","R4400"
"Wolverhampton City Council","http://opendatacommunities.org/id/metropolitan-district-council/wolverhampton","Hays Specialist Recruitment Limited","1007180588","119.52","Agency Staff","130154260","12/02/2017","The Hub","Payroll/HR","R1100"
"Wolverhampton City Council","http://opendatacommunities.org/id/metropolitan-district-council/wolverhampton","Hays Specialist Recruitment Limited","1007180975","200.83","Agency Staff","130154086","12/02/2017","The Hub","Payroll/HR","R1100"
"Wolverhampton City Council","http://opendatacommunities.org/id/metropolitan-district-council/wolverhampton","Hays Specialist Recruitment Limited","1007116007","568.32","Agency Staff","130152349","01/02/2017","The Hub","Payments Team","R1100"
"Wolverhampton City Council","http://opendatacommunities.org/id/metropolitan-district-council/wolverhampton","Hays Specialist Recruitment Limited","1007138447","437.76","Agency Staff","130152350","01/02/2017","The Hub","Payments Team","R1100"
"Wolverhampton City Council","http://opendatacommunities.org/id/metropolitan-district-council/wolverhampton","Hays Specialist Recruitment Limited","1007160565","391.68","Agency Staff","130152627","03/02/2017","The Hub","Payments Team","R1100"
"Wolverhampton City Council","http://opendatacommunities.org/id/metropolitan-district-council/wolverhampton","Hays Specialist Recruitment Limited","1007128743","1,246.90","Services - Professional Fees","130151027","12/02/2017","Estates and Valuations","Estates and Valuations Team","R4400"
"Wolverhampton City Council","http://opendatacommunities.org/id/metropolitan-district-council/wolverhampton","Hays Specialist Recruitment Limited","1007190312","997.52","Agency Staff","130153776","12/02/2017","Estates and Valuations","Estates and Valuations Team","R1100"
"Wolverhampton City Council","http://opendatacommunities.org/id/metropolitan-district-council/wolverhampton","Hays Specialist Recruitment Limited","1007180918","748.14","Agency Staff","130153774","12/02/2017","Estates and Valuations","Estates and Valuations Team","R1100"
"Wolverhampton City Council","http://opendatacommunities.org/id/metropolitan-district-council/wolverhampton","Hays Specialist Recruitment Limited","1007201882","453.12","Agency Staff","130154473","17/02/2017","The Hub","Payments Team","R1100"
"Wolverhampton City Council","http://opendatacommunities.org/id/metropolitan-district-council/wolverhampton","Hays Specialist Recruitment Limited","1007197658","385.12","Agency Staff","130153777","12/02/2017","The Hub","Payroll/HR","R1100"
"Wolverhampton City Council","http://opendatacommunities.org/id/metropolitan-district-council/wolverhampton","Hays Specialist Recruitment Limited","1007184647","422.4","Agency Staff","130153775","12/02/2017","The Hub","Payments Team","R1100"
"Wolverhampton City Council","http://opendatacommunities.org/id/metropolitan-district-council/wolverhampton","Hays Specialist Recruitment Limited","1007169402","305.44","Agency Staff","130154259","12/02/2017","The Hub","Payroll/HR","R1100"
"Wolverhampton City Council","http://opendatacommunities.org/id/metropolitan-district-council/wolverhampton","Headway Black Country","2.4682E+11","200","TPP - Day Care","190311711","15/02/2017","Physical Disabilities Assessment","PD Care Purchasing (Spot Placements)","R5430"
"Wolverhampton City Council","http://opendatacommunities.org/id/metropolitan-district-council/wolverhampton","Headway Black Country","2.4692E+11","200","TPP - Day Care","190311712","15/02/2017","Physical Disabilities Assessment","PD Care Purchasing (Spot Placements)","R5430"
"Wolverhampton City Council","http://opendatacommunities.org/id/metropolitan-district-council/wolverhampton","Headway Black Country","2.4692E+11","200","TPP - Day Care","190311712","15/02/2017","Physical Disabilities Assessment","PD Care Purchasing (Spot Placements)","R5430"
"Wolverhampton City Council","http://opendatacommunities.org/id/metropolitan-district-council/wolverhampton","Headway Black Country","2.4702E+11","120","TPP - Day Care","190311713","15/02/2017","Physical Disabilities Assessment","PD Care Purchasing (Spot Placements)","R5430"
"Wolverhampton City Council","http://opendatacommunities.org/id/metropolitan-district-council/wolverhampton","Headway Black Country","2.4712E+11","400","TPP - Day Care","190311714","15/02/2017","Physical Disabilities Assessment","PD Care Purchasing (Spot Placements)","R5430"
"Wolverhampton City Council","http://opendatacommunities.org/id/metropolitan-district-council/wolverhampton","Headway Black Country","2.4672E+11","400","TPP - Day Care","190311710","15/02/2017","Physical Disabilities Assessment","PD Care Purchasing (Spot Placements)","R5430"
"Wolverhampton City Council","http://opendatacommunities.org/id/metropolitan-district-council/wolverhampton","Heath Park School (Academy)","HP Dsc Mls Dec 16","46.31","School Meals","190311506","15/02/2017","Schools","Discounted School Meals Scheme","R4103"
"Wolverhampton City Council","http://opendatacommunities.org/id/metropolitan-district-council/wolverhampton","Heath Town Snr Citizens Welfare Proj","0008/1720170221","138","TPP - Day Care","190313905","22/02/2017","Older People Assessment & Care Management","OP Care Purchasing (Spot Placements)","R5430"
"Wolverhampton City Council","http://opendatacommunities.org/id/metropolitan-district-council/wolverhampton","Heath Town Snr Citizens Welfare Proj","0008/1720170221","391","TPP - Day Care","190313905","22/02/2017","Older People Assessment & Care Management","OP Care Purchasing (Spot Placements)","R5430"
"Wolverhampton City Council","http://opendatacommunities.org/id/metropolitan-district-council/wolverhampton","Heath Town Snr Citizens Welfare Proj","0008/1720170221","184","TPP - Day Care","190313905","22/02/2017","Older People Assessment & Care Management","OP Care Purchasing (Spot Placements)","R5430"
"Wolverhampton City Council","http://opendatacommunities.org/id/metropolitan-district-council/wolverhampton","Heath Town Snr Citizens Welfare Proj","0008/1720170221","207","TPP - Day Care","190313905","22/02/2017","Older People Assessment & Care Management","OP Care Purchasing (Spot Placements)","R5430"
"Wolverhampton City Council","http://opendatacommunities.org/id/metropolitan-district-council/wolverhampton","Heath Town Snr Citizens Welfare Proj","0008/1720170221","184","TPP - Day Care","190313905","22/02/2017","Older People Assessment & Care Management","OP Care Purchasing (Spot Placements)","R5430"
"Wolverhampton City Council","http://opendatacommunities.org/id/metropolitan-district-council/wolverhampton","Heath Town Snr Citizens Welfare Proj","0008/1720170221","276","TPP - Day Care","190313905","22/02/2017","Older People Assessment & Care Management","OP Care Purchasing (Spot Placements)","R5430"
"Wolverhampton City Council","http://opendatacommunities.org/id/metropolitan-district-council/wolverhampton","Heath Town Snr Citizens Welfare Proj","0008/1720170221","230","TPP - Day Care","190313905","22/02/2017","Older People Assessment & Care Management","OP Care Purchasing (Spot Placements)","R5430"
"Wolverhampton City Council","http://opendatacommunities.org/id/metropolitan-district-council/wolverhampton","Heath Town Snr Citizens Welfare Proj","0008/1720170221","115","TPP - Day Care","190313905","22/02/2017","Older People Assessment & Care Management","OP Care Purchasing (Spot Placements)","R5430"
"Wolverhampton City Council","http://opendatacommunities.org/id/metropolitan-district-council/wolverhampton","Heath Town Snr Citizens Welfare Proj","0008/1720170221","276","TPP - Day Care","190313905","22/02/2017","Older People Assessment & Care Management","OP Care Purchasing (Spot Placements)","R5430"
"Wolverhampton City Council","http://opendatacommunities.org/id/metropolitan-district-council/wolverhampton","Heath Town Snr Citizens Welfare Proj","0008/1720170221","161","TPP - Day Care","190313905","22/02/2017","Older People Assessment & Care Management","OP Care Purchasing (Spot Placements)","R5430"
"Wolverhampton City Council","http://opendatacommunities.org/id/metropolitan-district-council/wolverhampton","Heath Town Snr Citizens Welfare Proj","0008/1720170221","184","TPP - Day Care","190313905","22/02/2017","Older People Assessment & Care Management","OP Care Purchasing (Spot Placements)","R5430"
"Wolverhampton City Council","http://opendatacommunities.org/id/metropolitan-district-council/wolverhampton","Heath Town Snr Citizens Welfare Proj","0008/1720170221","299","TPP - Day Care","190313905","22/02/2017","Older People Assessment & Care Management","OP Care Purchasing (Spot Placements)","R5430"
"Wolverhampton City Council","http://opendatacommunities.org/id/metropolitan-district-council/wolverhampton","Heath Town Snr Citizens Welfare Proj","0008/1720170221","184","TPP - Day Care","190313905","22/02/2017","Older People Assessment & Care Management","OP Care Purchasing (Spot Placements)","R5430"
"Wolverhampton City Council","http://opendatacommunities.org/id/metropolitan-district-council/wolverhampton","Heath Town Snr Citizens Welfare Proj","0008/1720170221","46","TPP - Day Care","190313905","22/02/2017","Older People Assessment & Care Management","OP Care Purchasing (Spot Placements)","R5430"
"Wolverhampton City Council","http://opendatacommunities.org/id/metropolitan-district-council/wolverhampton","Heath Town Snr Citizens Welfare Proj","0008/1720170221","230","TPP - Day Care","190313905","22/02/2017","Older People Assessment & Care Management","OP Care Purchasing (Spot Placements)","R5430"
"Wolverhampton City Council","http://opendatacommunities.org/id/metropolitan-district-council/wolverhampton","Heath Town Snr Citizens Welfare Proj","0008/1720170221","322","TPP - Day Care","190313905","22/02/2017","Older People Assessment & Care Management","OP Care Purchasing (Spot Placements)","R5430"
"Wolverhampton City Council","http://opendatacommunities.org/id/metropolitan-district-council/wolverhampton","Heath Town Snr Citizens Welfare Proj","0008/1720170221","207","TPP - Day Care","190313905","22/02/2017","Older People Assessment & Care Management","OP Care Purchasing (Spot Placements)","R5430"
"Wolverhampton City Council","http://opendatacommunities.org/id/metropolitan-district-council/wolverhampton","Heath Town Snr Citizens Welfare Proj","0008/1720170221","184","TPP - Day Care","190313905","22/02/2017","Older People Assessment & Care Management","OP Care Purchasing (Spot Placements)","R5430"
"Wolverhampton City Council","http://opendatacommunities.org/id/metropolitan-district-council/wolverhampton","Heath Town Snr Citizens Welfare Proj","0008/1720170221","46","TPP - Day Care","190313905","22/02/2017","Older People Assessment & Care Management","OP Care Purchasing (Spot Placements)","R5430"
"Wolverhampton City Council","http://opendatacommunities.org/id/metropolitan-district-council/wolverhampton","Heath Town Snr Citizens Welfare Proj","0008/1720170221","92","TPP - Day Care","190313905","22/02/2017","Older People Assessment & Care Management","OP Care Purchasing (Spot Placements)","R5430"
"Wolverhampton City Council","http://opendatacommunities.org/id/metropolitan-district-council/wolverhampton","Heath Town Snr Citizens Welfare Proj","0008/1720170221","69","TPP - Day Care","190313905","22/02/2017","Older People Assessment & Care Management","OP Care Purchasing (Spot Placements)","R5430"
"Wolverhampton City Council","http://opendatacommunities.org/id/metropolitan-district-council/wolverhampton","Heath Town Snr Citizens Welfare Proj","0008/1720170221","184","TPP - Day Care","190313905","22/02/2017","Older People Assessment & Care Management","OP Care Purchasing (Spot Placements)","R5430"
"Wolverhampton City Council","http://opendatacommunities.org/id/metropolitan-district-council/wolverhampton","Heath Town Snr Citizens Welfare Proj","0008/1720170221","115","TPP - Day Care","190313905","22/02/2017","Older People Assessment & Care Management","OP Care Purchasing (Spot Placements)","R5430"
"Wolverhampton City Council","http://opendatacommunities.org/id/metropolitan-district-council/wolverhampton","Heath Town Snr Citizens Welfare Proj","0008/1720170221","23","TPP - Day Care","190313905","22/02/2017","Older People Assessment & Care Management","OP Care Purchasing (Spot Placements)","R5430"
"Wolverhampton City Council","http://opendatacommunities.org/id/metropolitan-district-council/wolverhampton","Heath Town Snr Citizens Welfare Proj","0008/1720170221","184","TPP - Day Care","190313905","22/02/2017","Older People Assessment & Care Management","OP Care Purchasing (Spot Placements)","R5430"
"Wolverhampton City Council","http://opendatacommunities.org/id/metropolitan-district-council/wolverhampton","Heath Town Snr Citizens Welfare Proj","0008/1720170221","184","TPP - Day Care","190313905","22/02/2017","Older People Assessment & Care Management","OP Care Purchasing (Spot Placements)","R5430"
"Wolverhampton City Council","http://opendatacommunities.org/id/metropolitan-district-council/wolverhampton","Heath Town Snr Citizens Welfare Proj","0008/1720170221","230","TPP - Day Care","190313905","22/02/2017","Older People Assessment & Care Management","OP Care Purchasing (Spot Placements)","R5430"
"Wolverhampton City Council","http://opendatacommunities.org/id/metropolitan-district-council/wolverhampton","Heath Town Snr Citizens Welfare Proj","0008/1720170221","46","TPP - Day Care","190313905","22/02/2017","Older People Assessment & Care Management","OP Care Purchasing (Spot Placements)","R5430"
"Wolverhampton City Council","http://opendatacommunities.org/id/metropolitan-district-council/wolverhampton","Heath Town Snr Citizens Welfare Proj","0008/1720170221","138","TPP - Day Care","190313905","22/02/2017","Older People Assessment & Care Management","OP Care Purchasing (Spot Placements)","R5430"
"Wolverhampton City Council","http://opendatacommunities.org/id/metropolitan-district-council/wolverhampton","Heath Town Snr Citizens Welfare Proj","0007/1720170130","184","TPP - Day Care","190306601","01/02/2017","Older People Assessment & Care Management","OP Care Purchasing (Spot Placements)","R5430"
"Wolverhampton City Council","http://opendatacommunities.org/id/metropolitan-district-council/wolverhampton","Heath Town Snr Citizens Welfare Proj","0007/1720170130","276","TPP - Day Care","190306601","01/02/2017","Older People Assessment & Care Management","OP Care Purchasing (Spot Placements)","R5430"
"Wolverhampton City Council","http://opendatacommunities.org/id/metropolitan-district-council/wolverhampton","Heath Town Snr Citizens Welfare Proj","0007/1720170130","184","TPP - Day Care","190306601","01/02/2017","Older People Assessment & Care Management","OP Care Purchasing (Spot Placements)","R5430"
"Wolverhampton City Council","http://opendatacommunities.org/id/metropolitan-district-council/wolverhampton","Heath Town Snr Citizens Welfare Proj","0007/1720170130","69","TPP - Day Care","190306601","01/02/2017","Older People Assessment & Care Management","OP Care Purchasing (Spot Placements)","R5430"
"Wolverhampton City Council","http://opendatacommunities.org/id/metropolitan-district-council/wolverhampton","Heath Town Snr Citizens Welfare Proj","0007/1720170130","184","TPP - Day Care","190306601","01/02/2017","Older People Assessment & Care Management","OP Care Purchasing (Spot Placements)","R5430"
"Wolverhampton City Council","http://opendatacommunities.org/id/metropolitan-district-council/wolverhampton","Heath Town Snr Citizens Welfare Proj","0007/1720170130","69","TPP - Day Care","190306601","01/02/2017","Older People Assessment & Care Management","OP Care Purchasing (Spot Placements)","R5430"
"Wolverhampton City Council","http://opendatacommunities.org/id/metropolitan-district-council/wolverhampton","Heath Town Snr Citizens Welfare Proj","0007/1720170130","92","TPP - Day Care","190306601","01/02/2017","Older People Assessment & Care Management","OP Care Purchasing (Spot Placements)","R5430"
"Wolverhampton City Council","http://opendatacommunities.org/id/metropolitan-district-council/wolverhampton","Heath Town Snr Citizens Welfare Proj","0007/1720170130","46","TPP - Day Care","190306601","01/02/2017","Older People Assessment & Care Management","OP Care Purchasing (Spot Placements)","R5430"
"Wolverhampton City Council","http://opendatacommunities.org/id/metropolitan-district-council/wolverhampton","Heath Town Snr Citizens Welfare Proj","0007/1720170130","138","TPP - Day Care","190306601","01/02/2017","Older People Assessment & Care Management","OP Care Purchasing (Spot Placements)","R5430"
"Wolverhampton City Council","http://opendatacommunities.org/id/metropolitan-district-council/wolverhampton","Heath Town Snr Citizens Welfare Proj","0007/1720170130","161","TPP - Day Care","190306601","01/02/2017","Older People Assessment & Care Management","OP Care Purchasing (Spot Placements)","R5430"
"Wolverhampton City Council","http://opendatacommunities.org/id/metropolitan-district-council/wolverhampton","Heath Town Snr Citizens Welfare Proj","0007/1720170130","92","TPP - Day Care","190306601","01/02/2017","Older People Assessment & Care Management","OP Care Purchasing (Spot Placements)","R5430"
"Wolverhampton City Council","http://opendatacommunities.org/id/metropolitan-district-council/wolverhampton","Heath Town Snr Citizens Welfare Proj","0007/1720170130","69","TPP - Day Care","190306601","01/02/2017","Older People Assessment & Care Management","OP Care Purchasing (Spot Placements)","R5430"
"Wolverhampton City Council","http://opendatacommunities.org/id/metropolitan-district-council/wolverhampton","Heath Town Snr Citizens Welfare Proj","0007/1720170130","184","TPP - Day Care","190306601","01/02/2017","Older People Assessment & Care Management","OP Care Purchasing (Spot Placements)","R5430"
"Wolverhampton City Council","http://opendatacommunities.org/id/metropolitan-district-council/wolverhampton","Heath Town Snr Citizens Welfare Proj","0007/1720170130","184","TPP - Day Care","190306601","01/02/2017","Older People Assessment & Care Management","OP Care Purchasing (Spot Placements)","R5430"
"Wolverhampton City Council","http://opendatacommunities.org/id/metropolitan-district-council/wolverhampton","Heath Town Snr Citizens Welfare Proj","0007/1720170130","276","TPP - Day Care","190306601","01/02/2017","Older People Assessment & Care Management","OP Care Purchasing (Spot Placements)","R5430"
"Wolverhampton City Council","http://opendatacommunities.org/id/metropolitan-district-council/wolverhampton","Heath Town Snr Citizens Welfare Proj","0007/1720170130","184","TPP - Day Care","190306601","01/02/2017","Older People Assessment & Care Management","OP Care Purchasing (Spot Placements)","R5430"
"Wolverhampton City Council","http://opendatacommunities.org/id/metropolitan-district-council/wolverhampton","Heath Town Snr Citizens Welfare Proj","0007/1720170130","46","TPP - Day Care","190306601","01/02/2017","Older People Assessment & Care Management","OP Care Purchasing (Spot Placements)","R5430"
"Wolverhampton City Council","http://opendatacommunities.org/id/metropolitan-district-council/wolverhampton","Heath Town Snr Citizens Welfare Proj","0007/1720170130","184","TPP - Day Care","190306601","01/02/2017","Older People Assessment & Care Management","OP Care Purchasing (Spot Placements)","R5430"
"Wolverhampton City Council","http://opendatacommunities.org/id/metropolitan-district-council/wolverhampton","Heath Town Snr Citizens Welfare Proj","0007/1720170130","368","TPP - Day Care","190306601","01/02/2017","Older People Assessment & Care Management","OP Care Purchasing (Spot Placements)","R5430"
"Wolverhampton City Council","http://opendatacommunities.org/id/metropolitan-district-council/wolverhampton","Heath Town Snr Citizens Welfare Proj","0007/1720170130","161","TPP - Day Care","190306601","01/02/2017","Older People Assessment & Care Management","OP Care Purchasing (Spot Placements)","R5430"
"Wolverhampton City Council","http://opendatacommunities.org/id/metropolitan-district-council/wolverhampton","Heath Town Snr Citizens Welfare Proj","0007/1720170130","184","TPP - Day Care","190306601","01/02/2017","Older People Assessment & Care Management","OP Care Purchasing (Spot Placements)","R5430"
"Wolverhampton City Council","http://opendatacommunities.org/id/metropolitan-district-council/wolverhampton","Heath Town Snr Citizens Welfare Proj","0007/1720170130","184","TPP - Day Care","190306601","01/02/2017","Older People Assessment & Care Management","OP Care Purchasing (Spot Placements)","R5430"
"Wolverhampton City Council","http://opendatacommunities.org/id/metropolitan-district-council/wolverhampton","Heath Town Snr Citizens Welfare Proj","0007/1720170130","253","TPP - Day Care","190306601","01/02/2017","Older People Assessment & Care Management","OP Care Purchasing (Spot Placements)","R5430"
"Wolverhampton City Council","http://opendatacommunities.org/id/metropolitan-district-council/wolverhampton","Heath Town Snr Citizens Welfare Proj","0007/1720170130","230","TPP - Day Care","190306601","01/02/2017","Older People Assessment & Care Management","OP Care Purchasing (Spot Placements)","R5430"
"Wolverhampton City Council","http://opendatacommunities.org/id/metropolitan-district-council/wolverhampton","Heath Town Snr Citizens Welfare Proj","0007/1720170130","253","TPP - Day Care","190306601","01/02/2017","Older People Assessment & Care Management","OP Care Purchasing (Spot Placements)","R5430"
"Wolverhampton City Council","http://opendatacommunities.org/id/metropolitan-district-council/wolverhampton","Heath Town Snr Citizens Welfare Proj","0007/1720170130","138","TPP - Day Care","190306601","01/02/2017","Older People Assessment & Care Management","OP Care Purchasing (Spot Placements)","R5430"
"Wolverhampton City Council","http://opendatacommunities.org/id/metropolitan-district-council/wolverhampton","Heath Town Snr Citizens Welfare Proj","0007/1720170130","92","TPP - Day Care","190306601","01/02/2017","Older People Assessment & Care Management","OP Care Purchasing (Spot Placements)","R5430"
"Wolverhampton City Council","http://opendatacommunities.org/id/metropolitan-district-council/wolverhampton","Heath Town Snr Citizens Welfare Proj","0007/1720170130","184","TPP - Day Care","190306601","01/02/2017","Older People Assessment & Care Management","OP Care Purchasing (Spot Placements)","R5430"
"Wolverhampton City Council","http://opendatacommunities.org/id/metropolitan-district-council/wolverhampton","Heath Town Snr Citizens Welfare Proj","0007/1720170130","184","TPP - Day Care","190306601","01/02/2017","Older People Assessment & Care Management","OP Care Purchasing (Spot Placements)","R5430"
"Wolverhampton City Council","http://opendatacommunities.org/id/metropolitan-district-council/wolverhampton","Heath Town Snr Citizens Welfare Proj","0007/1720170130","69","TPP - Day Care","190306601","01/02/2017","Older People Assessment & Care Management","OP Care Purchasing (Spot Placements)","R5430"
"Wolverhampton City Council","http://opendatacommunities.org/id/metropolitan-district-council/wolverhampton","Heath Town Snr Citizens Welfare Proj","0007/1720170130","92","TPP - Day Care","190306601","01/02/2017","Older People Assessment & Care Management","OP Care Purchasing (Spot Placements)","R5430"
"Wolverhampton City Council","http://opendatacommunities.org/id/metropolitan-district-council/wolverhampton","Hills Coaches Limited","30075","800","Client Transport","130156896","15/02/2017","School Planning & Resources","Towers Outdoor Education Centre","R3042"
"Wolverhampton City Council","http://opendatacommunities.org/id/metropolitan-district-council/wolverhampton","Hills Coaches Limited","28882","480","Hire of Vehicles","130156212","03/02/2017","Schools","Lanesfield Primary School","R3200"
"Wolverhampton City Council","http://opendatacommunities.org/id/metropolitan-district-council/wolverhampton","Hills Coaches Limited","30065","3,240.00","Client Transport","130156281","12/02/2017","School Planning & Resources","Special - Transport","R3042"
"Wolverhampton City Council","http://opendatacommunities.org/id/metropolitan-district-council/wolverhampton","Hilton Main Construction Limited","29558","1,300.00","Hire of Vehicles","190311168","15/02/2017","Fleet Services","Fleet Management","R3200"
"Wolverhampton City Council","http://opendatacommunities.org/id/metropolitan-district-council/wolverhampton","Hilton Main Construction Limited","28576","5,764.00","R&M - Departmental response (external)","130157744","15/02/2017","Highways Maintenance","Planned Highways Maintenance","R2003"
"Wolverhampton City Council","http://opendatacommunities.org/id/metropolitan-district-council/wolverhampton","Hilton Main Construction Limited","29559","1,300.00","Hire of Vehicles","190311169","15/02/2017","Fleet Services","Fleet Management","R3200"
"Wolverhampton City Council","http://opendatacommunities.org/id/metropolitan-district-council/wolverhampton","Hilton Main Construction Limited","27785","120.12","R&M - Departmental response (external)","130158408","15/02/2017","Highways Maintenance","Planned Highways Maintenance","R2003"
"Wolverhampton City Council","http://opendatacommunities.org/id/metropolitan-district-council/wolverhampton","Hilton Main Construction Limited","29398","3,861.54","Construction and Conversion","130152821","03/02/2017","-","Wolverhampton Interchange","C1100"
"Wolverhampton City Council","http://opendatacommunities.org/id/metropolitan-district-council/wolverhampton","Hilton Main Construction Limited","29467","420","R&M - Departmental response (external)","130154664","17/02/2017","Street Lighting","Street Lighting Maintenance","R2003"
"Wolverhampton City Council","http://opendatacommunities.org/id/metropolitan-district-council/wolverhampton","Hilton Main Construction Limited","29468","1,960.00","R&M - Departmental response (external)","130154665","08/02/2017","Street Lighting","Street Lighting Maintenance","R2003"
"Wolverhampton City Council","http://opendatacommunities.org/id/metropolitan-district-council/wolverhampton","Hilton Main Construction Limited","29441","761","R&M - Departmental response (external)","130154269","12/02/2017","Markets","Wholesale Market Facilities Management","R2003"
"Wolverhampton City Council","http://opendatacommunities.org/id/metropolitan-district-council/wolverhampton","Hilton Main Construction Limited","29471","1,400.00","R&M - Departmental response (external)","130154668","12/02/2017","Street Lighting","Street Lighting Maintenance","R2003"
"Wolverhampton City Council","http://opendatacommunities.org/id/metropolitan-district-council/wolverhampton","Hilton Main Construction Limited","29442","761","R&M - Departmental response (external)","130154270","12/02/2017","Cleaning","Priory Green","R2003"
"Wolverhampton City Council","http://opendatacommunities.org/id/metropolitan-district-council/wolverhampton","Hilton Main Construction Limited","29443","761","R&M - Departmental response (external)","130154271","12/02/2017","Facilities Management","Hickman Avenue Depot","R2003"
"Wolverhampton City Council","http://opendatacommunities.org/id/metropolitan-district-council/wolverhampton","Hilton Main Construction Limited","29428","1,195.41","R&M - Departmental planned (external)","130154262","12/02/2017","Facilities Management","Caretakers Community Centre","R2001"
"Wolverhampton City Council","http://opendatacommunities.org/id/metropolitan-district-council/wolverhampton","Hilton Main Construction Limited","29537","1,196.14","R&M - Departmental response (external)","130155749","12/02/2017","Highways Maintenance","Winter Maintenance","R2003"
"Wolverhampton City Council","http://opendatacommunities.org/id/metropolitan-district-council/wolverhampton","Hilton Main Construction Limited","29540","3,321.82","R&M - Departmental response (external)","130155751","12/02/2017","Highways Maintenance","Winter Maintenance","R2003"
"Wolverhampton City Council","http://opendatacommunities.org/id/metropolitan-district-council/wolverhampton","Hilton Main Construction Limited","29536","1,965.14","R&M - Departmental response (external)","130155748","12/02/2017","Highways Maintenance","Winter Maintenance","R2003"
"Wolverhampton City Council","http://opendatacommunities.org/id/metropolitan-district-council/wolverhampton","Hilton Main Construction Limited","29470","2,660.00","R&M - Departmental response (external)","130154667","12/02/2017","Street Lighting","Street Lighting Maintenance","R2003"
"Wolverhampton City Council","http://opendatacommunities.org/id/metropolitan-district-council/wolverhampton","Hilton Main Construction Limited","29436","250","R&M - Departmental response (external)","130154265","12/02/2017","Environmental Maintenance","Ground Maintenance East","R2003"
"Wolverhampton City Council","http://opendatacommunities.org/id/metropolitan-district-council/wolverhampton","Hilton Main Construction Limited","29484","393","R&M - Departmental response (external)","130155043","01/02/2017","Highways Maintenance","Brook course, Culvert & Subway Maintenance","R2003"
"Wolverhampton City Council","http://opendatacommunities.org/id/metropolitan-district-council/wolverhampton","Hilton Main Construction Limited","29485","550","R&M - Departmental response (external)","130155044","01/02/2017","School Planning & Resources","Other Support Services","R2003"
"Wolverhampton City Council","http://opendatacommunities.org/id/metropolitan-district-council/wolverhampton","Hilton Main Construction Limited","29486","90","R&M - Departmental response (external)","130155045","01/02/2017","Facilities Management","Caretakers Community Centre","R2003"
"Wolverhampton City Council","http://opendatacommunities.org/id/metropolitan-district-council/wolverhampton","Hilton Main Construction Limited","29535","384.5","R&M - Departmental response (external)","130155747","03/02/2017","Highways Maintenance","Patching","R2003"
"Wolverhampton City Council","http://opendatacommunities.org/id/metropolitan-district-council/wolverhampton","Hilton Main Construction Limited","29538","5,775.83","R&M - Departmental response (external)","130155750","03/02/2017","Highways Maintenance","Patching","R2003"
"Wolverhampton City Council","http://opendatacommunities.org/id/metropolitan-district-council/wolverhampton","Hilton Main Construction Limited","28678","2,005.60","R&M - Departmental response (external)","130157746","22/02/2017","Highways Maintenance","Planned Highways Maintenance","R2003"
"Wolverhampton City Council","http://opendatacommunities.org/id/metropolitan-district-council/wolverhampton","Hilton Main Construction Limited","29453","2,371.88","Services - Professional Fees","130154272","12/02/2017","City Development","Strategic Asset Management - Bilston Town Centre Regen","R4400"
"Wolverhampton City Council","http://opendatacommunities.org/id/metropolitan-district-council/wolverhampton","Hilton Main Construction Limited","29554","-1,334.60","R&M - Departmental response (external)","130156897","08/02/2017","Highways Maintenance","Fencing & Guard Rails","R2003"
"Wolverhampton City Council","http://opendatacommunities.org/id/metropolitan-district-council/wolverhampton","Hilton Main Construction Limited","29439","-44,143.91","Construction and Conversion","130154268","08/02/2017","-","Corporate Asset Management","C1100"
"Wolverhampton City Council","http://opendatacommunities.org/id/metropolitan-district-council/wolverhampton","Hilton Main Construction Limited","29487","550","R&M - Departmental planned (external)","130155046","08/02/2017","Facilities Management","Parkfields Office Accomodation","R2001"
"Wolverhampton City Council","http://opendatacommunities.org/id/metropolitan-district-council/wolverhampton","Hilton Main Construction Limited","29050","44,143.91","Construction and Conversion","130143986","08/02/2017","-","Corporate Asset Management","C1100"
"Wolverhampton City Council","http://opendatacommunities.org/id/metropolitan-district-council/wolverhampton","Hilton Main Construction Limited","28571","840.13","R&M - Departmental response (external)","130157741","12/02/2017","Highways Maintenance","Patching","R2003"
"Wolverhampton City Council","http://opendatacommunities.org/id/metropolitan-district-council/wolverhampton","Hilton Main Construction Limited","28574","1,575.00","R&M - Departmental response (external)","130157742","12/02/2017","Highways Maintenance","Patching","R2003"
"Wolverhampton City Council","http://opendatacommunities.org/id/metropolitan-district-council/wolverhampton","Hilton Main Construction Limited","28575","1,250.40","R&M - Departmental response (external)","130157743","12/02/2017","Highways Maintenance","Patching","R2003"
"Wolverhampton City Council","http://opendatacommunities.org/id/metropolitan-district-council/wolverhampton","Hilton Main Construction Limited","29429","881.04","R&M - Departmental response (external)","130154263","12/02/2017","Operation & Maintenance of Existing Network","Public Rights of Way (CROW Act 2000)","R2003"
"Wolverhampton City Council","http://opendatacommunities.org/id/metropolitan-district-council/wolverhampton","Hilton Main Construction Limited","29437","480","R&M - Departmental planned (external)","130154266","12/02/2017","Facilities Management","Culwell Street Depot","R2001"
"Wolverhampton City Council","http://opendatacommunities.org/id/metropolitan-district-council/wolverhampton","Hilton Main Construction Limited","29438","520","R&M - Departmental planned (external)","130154267","12/02/2017","Facilities Management","Hickman Avenue Depot","R2001"
"Wolverhampton City Council","http://opendatacommunities.org/id/metropolitan-district-council/wolverhampton","Hilton Main Construction Limited","29435","340","R&M - Departmental response (external)","130154264","12/02/2017","Transportation","Bridges & Subways","R2003"
"Wolverhampton City Council","http://opendatacommunities.org/id/metropolitan-district-council/wolverhampton","Hilton Main Construction Limited","29481","368","R&M - Departmental response (external)","130155040","08/02/2017","Highways Maintenance","Highway & Land Drainage","R2003"
"Wolverhampton City Council","http://opendatacommunities.org/id/metropolitan-district-council/wolverhampton","Hilton Main Construction Limited","29482","3,428.14","R&M - Departmental response (external)","130155041","08/02/2017","Highways Maintenance","Highway & Land Drainage","R2003"
"Wolverhampton City Council","http://opendatacommunities.org/id/metropolitan-district-council/wolverhampton","Hilton Main Construction Limited","29483","2,154.96","R&M - Departmental response (external)","130155042","08/02/2017","Highways Maintenance","Highway & Land Drainage","R2003"
"Wolverhampton City Council","http://opendatacommunities.org/id/metropolitan-district-council/wolverhampton","Hilton Main Construction Limited","29383","960","R&M - Departmental response (external)","130152635","08/02/2017","Highways Maintenance","Patching","R2003"
"Wolverhampton City Council","http://opendatacommunities.org/id/metropolitan-district-council/wolverhampton","Hilton Main Construction Limited","29541","6,558.43","R&M - Departmental response (external)","130155752","08/02/2017","Highways Maintenance","Patching","R2003"
"Wolverhampton City Council","http://opendatacommunities.org/id/metropolitan-district-council/wolverhampton","Hilton Main Construction Limited","29472","1,430.00","R&M - Departmental response (external)","130154669","17/02/2017","Street Lighting","Street Lighting Maintenance","R2003"
"Wolverhampton City Council","http://opendatacommunities.org/id/metropolitan-district-council/wolverhampton","Hilton Main Construction Limited","29543","7,025.14","R&M - Departmental response (external)","130155753","17/02/2017","Highways Maintenance","Patching","R2003"
"Wolverhampton City Council","http://opendatacommunities.org/id/metropolitan-district-council/wolverhampton","HMCTS","GOW002","400","Services - Fees and Charges","190314282","24/02/2017","Safeguarding","Court of Protection, Funerals and Protection of Property","R4401"
"Wolverhampton City Council","http://opendatacommunities.org/id/metropolitan-district-council/wolverhampton","HMCTS","GOW001","400","Services - Fees and Charges","190309130","08/02/2017","Safeguarding","Court of Protection, Funerals and Protection of Property","R4401"
"Wolverhampton City Council","http://opendatacommunities.org/id/metropolitan-district-council/wolverhampton","HMCTS","Turner002","400","Services - Fees and Charges","190310042","12/02/2017","Safeguarding","Court of Protection, Funerals and Protection of Property","R4401"
"Wolverhampton City Council","http://opendatacommunities.org/id/metropolitan-district-council/wolverhampton","Home Stamp Limited","2/WoIv&rhampton 2016/17","150","Subscriptions","130157253","08/02/2017","Housing","Private Sector Housing","R4701"
"Wolverhampton City Council","http://opendatacommunities.org/id/metropolitan-district-council/wolverhampton","Hometrack Date Systems (Hds) Limited","2395010","6,700.00","Services - Fees and Charges","130154670","12/02/2017","Housing","Housing Regeneration - Strategy & Development","R4401"
"Wolverhampton City Council","http://opendatacommunities.org/id/metropolitan-district-council/wolverhampton","Hopcraft Memorials Limited","HM0282","90","Materials","130156901","15/02/2017","Bereavement Services","Cemeteries","R4007"
"Wolverhampton City Council","http://opendatacommunities.org/id/metropolitan-district-council/wolverhampton","House Of Fraser","25726","148.5","Gratuities","130153929","15/02/2017","Democratic Services","Mayoral Expenses","R1402"
"Wolverhampton City Council","http://opendatacommunities.org/id/metropolitan-district-council/wolverhampton","House Of Fraser","25726","-148.5","Gratuities","130153929","15/02/2017","Democratic Services","Mayoral Expenses","R1402"
"Wolverhampton City Council","http://opendatacommunities.org/id/metropolitan-district-council/wolverhampton","House Of Fraser","25726","148.5","Gratuities","130153929","15/02/2017","Democratic Services","Mayoral Expenses","R1402"
"Wolverhampton City Council","http://opendatacommunities.org/id/metropolitan-district-council/wolverhampton","House Of Fraser","25222","2,673.00","Gratuities","130153928","03/02/2017","Democratic Services","Mayoral Expenses","R1402"
"Wolverhampton City Council","http://opendatacommunities.org/id/metropolitan-district-council/wolverhampton","HSS Hire Service Group Limited","13871790","151.3","Training Expenses","130157516","17/02/2017","Audit Services","Site Management Health & Safety","R1650"
"Wolverhampton City Council","http://opendatacommunities.org/id/metropolitan-district-council/wolverhampton","Ian Livie","INV10364","800","Equipment - Hire","130155555","17/02/2017","Visitor Economy","Civic Halls - CHIP","R4001"
"Wolverhampton City Council","http://opendatacommunities.org/id/metropolitan-district-council/wolverhampton","Iccm","8492","310","Subscriptions","130159266","22/02/2017","Bereavement Services","Crematorium","R4701"
"Wolverhampton City Council","http://opendatacommunities.org/id/metropolitan-district-council/wolverhampton","Idox Software Limited","106151","252.75","Computing - Maint Agreements","130150094","22/02/2017","ICTS","Strategic ICTS (ICT Service Budget)","R4534"
"Wolverhampton City Council","http://opendatacommunities.org/id/metropolitan-district-council/wolverhampton","Idox Software Limited","7012874","4,150.00","Grant Payments","130151479","22/02/2017","Standards and Vulnerable Pupils","SEND Reform Grant","R4700"
"Wolverhampton City Council","http://opendatacommunities.org/id/metropolitan-district-council/wolverhampton","Idox Software Limited","7012874","-4,150.00","Grant Payments","130151479","22/02/2017","Standards and Vulnerable Pupils","SEND Reform Grant","R4700"
"Wolverhampton City Council","http://opendatacommunities.org/id/metropolitan-district-council/wolverhampton","Idox Software Limited","7012874","4,150.00","Grant Payments","130151479","22/02/2017","Standards and Vulnerable Pupils","SEND Reform Grant","R4700"
"Wolverhampton City Council","http://opendatacommunities.org/id/metropolitan-district-council/wolverhampton","Imtech Traffic & Infra UK Limited (Peek)","16007196 UI","2,300.00","Equipment - R & M","130154857","03/02/2017","Operation & Maintenance of Existing Network","Traffic Signals","R4003"
"Wolverhampton City Council","http://opendatacommunities.org/id/metropolitan-district-council/wolverhampton","Indespension Limited","2273932","18.75","Equipment - Purchase","190311166","15/02/2017","Fleet Services","Fleet Management","R4000"
"Wolverhampton City Council","http://opendatacommunities.org/id/metropolitan-district-council/wolverhampton","Indespension Limited","2276137","42.5","Equipment - Purchase","190314494","24/02/2017","Fleet Services","Fleet Management","R4000"
"Wolverhampton City Council","http://opendatacommunities.org/id/metropolitan-district-council/wolverhampton","Industrial Scales (UK) Limited","C146421","75","Equipment - Purchase","130157924","15/02/2017","Learning Disability Provider","Support Plus","R4000"
"Wolverhampton City Council","http://opendatacommunities.org/id/metropolitan-district-council/wolverhampton","Initial Washroom Solutions","32208781","14.55","Cleaning Supplies and Materials","130150610","08/02/2017","Visitor Economy","Art Gallery","R2705"
"Wolverhampton City Council","http://opendatacommunities.org/id/metropolitan-district-council/wolverhampton","Initial Washroom Solutions","32237754","52.09","Cleaning Supplies and Materials","130153931","03/02/2017","Facilities Management","Hickman Avenue Depot","R2705"
"Wolverhampton City Council","http://opendatacommunities.org/id/metropolitan-district-council/wolverhampton","Initial Washroom Solutions","32225335","3.47","Cleaning Supplies and Materials","130154274","03/02/2017","Environmental Maintenance","Ground Maintenance East","R2705"
"Wolverhampton City Council","http://opendatacommunities.org/id/metropolitan-district-council/wolverhampton","Initial Washroom Solutions","32225335","3.47","Cleaning Supplies and Materials","130154274","03/02/2017","Environmental Maintenance","Street Cleansing East","R2705"
"Wolverhampton City Council","http://opendatacommunities.org/id/metropolitan-district-council/wolverhampton","Initial Washroom Solutions","32172673","29.09","Cleaning Supplies and Materials","130146096","01/02/2017","Visitor Economy","Art Gallery","R2705"
"Wolverhampton City Council","http://opendatacommunities.org/id/metropolitan-district-council/wolverhampton","Initial Washroom Solutions","32225336","133.75","Cleaning Supplies and Materials","130153589","03/02/2017","Highways Maintenance","Patching","R2705"
"Wolverhampton City Council","http://opendatacommunities.org/id/metropolitan-district-council/wolverhampton","Initial Washroom Solutions","32237752","70.09","Cleaning Supplies and Materials","130153782","03/02/2017","Facilities Management","Culwell Street Depot","R2705"
"Wolverhampton City Council","http://opendatacommunities.org/id/metropolitan-district-council/wolverhampton","Initial Washroom Solutions","32208782","29.09","Cleaning Supplies and Materials","130150611","01/02/2017","Visitor Economy","Art Gallery","R2705"
"Wolverhampton City Council","http://opendatacommunities.org/id/metropolitan-district-council/wolverhampton","Initial Washroom Solutions","32230505","27.31","Cleaning Supplies and Materials","130153930","03/02/2017","Older People Assessment & Care Management","Assessment Team (North)","R2705"
"Wolverhampton City Council","http://opendatacommunities.org/id/metropolitan-district-council/wolverhampton","Initial Washroom Solutions","32237750","19.19","Cleaning Supplies and Materials","130153780","03/02/2017","Bereavement Services","Crematorium","R2705"
"Wolverhampton City Council","http://opendatacommunities.org/id/metropolitan-district-council/wolverhampton","Initial Washroom Solutions","32237751","34.73","Cleaning Supplies and Materials","130153781","03/02/2017","Older People Assessment & Care Management","Assessment Team (North)","R2705"
"Wolverhampton City Council","http://opendatacommunities.org/id/metropolitan-district-council/wolverhampton","Innovise Software/Indentifile Systms","IS49487","1,045.00","Computing - Licences","130158632","17/02/2017","Facilities Management","Civic Centre","R4535"
"Wolverhampton City Council","http://opendatacommunities.org/id/metropolitan-district-council/wolverhampton","Instarmac Group PLC","568556","264.88","Materials","130158409","15/02/2017","Street Lighting","Street Lighting Maintenance","R4007"
"Wolverhampton City Council","http://opendatacommunities.org/id/metropolitan-district-council/wolverhampton","Instarmac Group PLC","568556","434.2","Materials","130158409","15/02/2017","Street Lighting","Street Lighting Maintenance","R4007"
"Wolverhampton City Council","http://opendatacommunities.org/id/metropolitan-district-council/wolverhampton","Instarmac Group PLC","552576","430.04","Materials","130156489","08/02/2017","Street Lighting","Street Lighting Energy","R4007"
"Wolverhampton City Council","http://opendatacommunities.org/id/metropolitan-district-council/wolverhampton","Instarmac Group PLC","552576","262.08","Materials","130156489","08/02/2017","Street Lighting","Street Lighting Maintenance","R4007"
"Wolverhampton City Council","http://opendatacommunities.org/id/metropolitan-district-council/wolverhampton","Integrated Water Services Limited","CD200030894","240","R&M - Departmental planned (external)","130157517","24/02/2017","Maintenance Programme","Centralised R&M","R2001"
"Wolverhampton City Council","http://opendatacommunities.org/id/metropolitan-district-council/wolverhampton","Integrated Water Services Limited","CD200030889","320","R&M - Departmental planned (external)","130156903","24/02/2017","Maintenance Programme","Centralised R&M","R2001"
"Wolverhampton City Council","http://opendatacommunities.org/id/metropolitan-district-council/wolverhampton","Integrated Water Services Limited","CD200030896","240","R&M - Departmental planned (external)","130156904","24/02/2017","Maintenance Programme","Centralised R&M","R2001"
"Wolverhampton City Council","http://opendatacommunities.org/id/metropolitan-district-council/wolverhampton","Integrated Water Services Limited","CD200027805","416","R&M - Departmental planned (external)","130156282","08/02/2017","Maintenance Programme","Centralised R&M","R2001"
"Wolverhampton City Council","http://opendatacommunities.org/id/metropolitan-district-council/wolverhampton","Integrated Water Services Limited","CD200030898","640","R&M - Departmental planned (external)","130156905","24/02/2017","Maintenance Programme","Centralised R&M","R2001"
"Wolverhampton City Council","http://opendatacommunities.org/id/metropolitan-district-council/wolverhampton","Integrated Water Services Limited","CD200030885","620.16","R&M - Departmental planned (external)","130156902","24/02/2017","Facilities Management","Civic Centre","R2001"
"Wolverhampton City Council","http://opendatacommunities.org/id/metropolitan-district-council/wolverhampton","Interclass PLC","10694","136,007.86","Construction and Conversion","130155878","01/02/2017","-","Primary Expansion Programme","C1100"
"Wolverhampton City Council","http://opendatacommunities.org/id/metropolitan-district-council/wolverhampton","Interclass PLC","10709","556.33","Construction and Conversion","130159522","22/02/2017","-","Primary Expansion Programme","C1100"
"Wolverhampton City Council","http://opendatacommunities.org/id/metropolitan-district-council/wolverhampton","Interwaste Municipal Limitedc/O Fleet Ca","22903","210.91","Equipment - Purchase","190314495","24/02/2017","Fleet Services","Fleet Management","R4000"
"Wolverhampton City Council","http://opendatacommunities.org/id/metropolitan-district-council/wolverhampton","Interwaste Municipal Limitedc/O Fleet Ca","22782","152.8","Equipment - Purchase","190310316","12/02/2017","Fleet Services","Fleet Management","R4000"
"Wolverhampton City Council","http://opendatacommunities.org/id/metropolitan-district-council/wolverhampton","Intrahealth Limited","Medical fee - KJ Pardoe","95","Services - Professional Fees","190307735","03/02/2017","Looked After Children","Fostering Team & Allowances","R4400"
"Wolverhampton City Council","http://opendatacommunities.org/id/metropolitan-district-council/wolverhampton","IOSH Services Limited","IS L174433","310","Training Expenses","130154275","15/02/2017","Adult Education","Direct Delivery Team ( L.& D.)","R1650"
"Wolverhampton City Council","http://opendatacommunities.org/id/metropolitan-district-council/wolverhampton","IOSH Services Limited","ISL172182","20","Training Expenses","130150402","08/02/2017","Adult Education","Direct Delivery Team ( L.& D.)","R1650"
"Wolverhampton City Council","http://opendatacommunities.org/id/metropolitan-district-council/wolverhampton","J Lacey Steeplejacks Contractors Limited","19367","295","Fixtures and Fittings - Purchases","130154671","01/02/2017","Facilities Management","Bilston Town Hall","R2500"
"Wolverhampton City Council","http://opendatacommunities.org/id/metropolitan-district-council/wolverhampton","J M Turley Limited","53617","3,094.00","Plant, Equipment, Machinery & Computer Hardware","130153387","03/02/2017","-","GF - Leisure Centres Enhancement","C3000"
"Wolverhampton City Council","http://opendatacommunities.org/id/metropolitan-district-council/wolverhampton","J S Bassi T/A Penn Radio Cars","140","1,306.20","Client Transport","130157519","12/02/2017","School Planning & Resources","Special - Transport","R3042"
"Wolverhampton City Council","http://opendatacommunities.org/id/metropolitan-district-council/wolverhampton","J S Bassi T/A Penn Radio Cars","144","735","Client Transport","130157523","12/02/2017","School Planning & Resources","Special - Transport","R3042"
"Wolverhampton City Council","http://opendatacommunities.org/id/metropolitan-district-council/wolverhampton","J S Bassi T/A Penn Radio Cars","141","945","Client Transport","130157520","12/02/2017","School Planning & Resources","Special - Transport","R3042"
"Wolverhampton City Council","http://opendatacommunities.org/id/metropolitan-district-council/wolverhampton","J S Bassi T/A Penn Radio Cars","142","595","Client Transport","130157521","12/02/2017","School Planning & Resources","Home to College Transport","R3042"
"Wolverhampton City Council","http://opendatacommunities.org/id/metropolitan-district-council/wolverhampton","J S Bassi T/A Penn Radio Cars","143","777","Client Transport","130157522","12/02/2017","School Planning & Resources","Primary - Transport","R3042"
"Wolverhampton City Council","http://opendatacommunities.org/id/metropolitan-district-council/wolverhampton","Jack Moody Landscaping & Civil Engineering Limited","IN2076","1,561.12","Construction and Conversion","130156283","08/02/2017","-","GF - Leisure Centres Enhancement","C1100"
"Wolverhampton City Council","http://opendatacommunities.org/id/metropolitan-district-council/wolverhampton","Jackdaw (Tools) Limited","JV355251","4.11","Equipment - Purchase","190309569","08/02/2017","Fleet Services","Fleet Management","R4000"
"Wolverhampton City Council","http://opendatacommunities.org/id/metropolitan-district-council/wolverhampton","Jackdaw (Tools) Limited","JV356577","3.54","Equipment - Purchase","190311247","15/02/2017","Fleet Services","Fleet Management","R4000"
"Wolverhampton City Council","http://opendatacommunities.org/id/metropolitan-district-council/wolverhampton","Jackdaw (Tools) Limited","JV356577","0.94","Equipment - Purchase","190311247","15/02/2017","Fleet Services","Fleet Management","R4000"
"Wolverhampton City Council","http://opendatacommunities.org/id/metropolitan-district-council/wolverhampton","Jacobs U.K.Limited","B1018000-202-033","11,083.34","Services - Professional Fees","130158148","15/02/2017","Maintenance Programme","Centralised R&M","R4400"
"Wolverhampton City Council","http://opendatacommunities.org/id/metropolitan-district-council/wolverhampton","Jacobs U.K.Limited","B1018000-203-018","1,592.13","Services - Professional Fees","130158149","15/02/2017","Estates and Valuations","Estates and Valuations Team","R4400"
"Wolverhampton City Council","http://opendatacommunities.org/id/metropolitan-district-council/wolverhampton","Jacobs U.K.Limited","B1018000-202-021","3,333.12","Services - Professional Fees","130157261","08/02/2017","Facilities Management","Civic Centre","R4400"
"Wolverhampton City Council","http://opendatacommunities.org/id/metropolitan-district-council/wolverhampton","Jacobs U.K.Limited","B1018000-202-021","312.48","Services - Professional Fees","130157261","08/02/2017","Facilities Management","Civic Centre","R4400"
"Wolverhampton City Council","http://opendatacommunities.org/id/metropolitan-district-council/wolverhampton","Jacobs U.K.Limited","B1018000 - 204 - 001","4,900.23","Construction and Conversion","130157257","17/02/2017","-","Black Country Growth Deal � Cultural Programme","C1100"
"Wolverhampton City Council","http://opendatacommunities.org/id/metropolitan-district-council/wolverhampton","Jacobs U.K.Limited","B1018000 - 204 - 002","14,000.00","Construction and Conversion","130157258","17/02/2017","-","Black Country Growth Deal � Cultural Programme","C1100"
"Wolverhampton City Council","http://opendatacommunities.org/id/metropolitan-district-council/wolverhampton","Jacobs U.K.Limited","B1018000 - 204 - 003","6,411.56","Construction and Conversion","130157259","17/02/2017","-","Black Country Growth Deal � Cultural Programme","C1100"
"Wolverhampton City Council","http://opendatacommunities.org/id/metropolitan-district-council/wolverhampton","Jacobs U.K.Limited","81018000 - 204 - 005","10,100.09","Construction and Conversion","130157256","17/02/2017","-","Black Country Growth Deal � Cultural Programme","C1100"
"Wolverhampton City Council","http://opendatacommunities.org/id/metropolitan-district-council/wolverhampton","Jacobs U.K.Limited","B1018000 - 204 - 014","260.4","Services - Professional Fees","130156048","17/02/2017","School Planning & Resources","Building Schools for the Future (BSF)","R4400"
"Wolverhampton City Council","http://opendatacommunities.org/id/metropolitan-district-council/wolverhampton","Jacobs U.K.Limited","B1018000 - 204 - 004","789.96","Construction and Conversion","130157260","17/02/2017","-","Black Country Growth Deal � Cultural Programme","C1100"
"Wolverhampton City Council","http://opendatacommunities.org/id/metropolitan-district-council/wolverhampton","Jacobs U.K.Limited","B1018000 - 203 - 022","7,916.80","Services - Professional Fees","130154105","08/02/2017","Capital Programme","Capital programme Team - Wolverhampton Homes","R4400"
"Wolverhampton City Council","http://opendatacommunities.org/id/metropolitan-district-council/wolverhampton","Jacobs U.K.Limited","B1018000 - 204 - 008","4,348.68","Construction and Conversion","130156042","17/02/2017","-","Decent Homes - Stock Improvements","C1100"
"Wolverhampton City Council","http://opendatacommunities.org/id/metropolitan-district-council/wolverhampton","Jacobs U.K.Limited","B1018000 - 204 - 015","9,270.24","Services - Professional Fees","130156049","17/02/2017","Corporate Asset Management","Statutory Surveys","R4400"
"Wolverhampton City Council","http://opendatacommunities.org/id/metropolitan-district-council/wolverhampton","Jacobs U.K.Limited","B1018000-204-007","11,214.18","Construction and Conversion","130156041","17/02/2017","-","Decent Homes - Stock Improvements","C1100"
"Wolverhampton City Council","http://opendatacommunities.org/id/metropolitan-district-council/wolverhampton","Jacobs U.K.Limited","B1018000 - 204 - 016","44,329.32","Construction and Conversion","130156050","17/02/2017","-","Decent Homes - Stock Improvements","C1100"
"Wolverhampton City Council","http://opendatacommunities.org/id/metropolitan-district-council/wolverhampton","Jacobs U.K.Limited","B1018000 - 204 - 022","14,453.09","Construction and Conversion","130156055","17/02/2017","-","Bilston Urban Village","C1100"
"Wolverhampton City Council","http://opendatacommunities.org/id/metropolitan-district-council/wolverhampton","Jacobs U.K.Limited","B1018000 - 204 - 021","480","Construction and Conversion","130156054","17/02/2017","-","Structural works","C1100"
"Wolverhampton City Council","http://opendatacommunities.org/id/metropolitan-district-council/wolverhampton","Jacobs U.K.Limited","B1018000 - 204 - 011","208.32","Services - Professional Fees","130156045","17/02/2017","Facilities Management","Civic Centre","R4400"
"Wolverhampton City Council","http://opendatacommunities.org/id/metropolitan-district-council/wolverhampton","Jacobs U.K.Limited","B101/000-199-034 corr","-3,877.40","Construction and Conversion","130155278","08/02/2017","-","Primary Expansion Programme","C1100"
"Wolverhampton City Council","http://opendatacommunities.org/id/metropolitan-district-council/wolverhampton","Jacobs U.K.Limited","B1018000-199-047 corr","-2,235.60","Construction and Conversion","130155279","08/02/2017","-","Civic Centre car Park Repairs - Refurbs","C1100"
"Wolverhampton City Council","http://opendatacommunities.org/id/metropolitan-district-council/wolverhampton","Jacobs U.K.Limited","B1018000-199-052 corr","-555.52","Construction and Conversion","130155281","08/02/2017","-","Future Spaces","C1100"
"Wolverhampton City Council","http://opendatacommunities.org/id/metropolitan-district-council/wolverhampton","Jacobs U.K.Limited","B1018000-199-005 corr","-652.6","Construction and Conversion","130155280","08/02/2017","-","Co-Location Programme","C1100"
"Wolverhampton City Council","http://opendatacommunities.org/id/metropolitan-district-council/wolverhampton","Jacobs U.K.Limited","B1018000-199-042 corr","-450","Construction and Conversion","130155282","08/02/2017","-","Structural works","C1100"
"Wolverhampton City Council","http://opendatacommunities.org/id/metropolitan-district-council/wolverhampton","Jacobs U.K.Limited","B1018000-202-020","4,125.95","Services - Professional Fees","130156284","08/02/2017","Facilities Management","Culwell Street Depot","R4400"
"Wolverhampton City Council","http://opendatacommunities.org/id/metropolitan-district-council/wolverhampton","Jacobs U.K.Limited","B1018000 - 203 - 019","1,524.30","Services - Professional Fees","130156039","08/02/2017","Corporate Asset Management","Strategic Asset Management Team","R4400"
"Wolverhampton City Council","http://opendatacommunities.org/id/metropolitan-district-council/wolverhampton","Jacobs U.K.Limited","B1018000 204 017","2,747.50","Construction and Conversion","130156059","17/02/2017","-","Primary Expansion Programme","C1100"
"Wolverhampton City Council","http://opendatacommunities.org/id/metropolitan-district-council/wolverhampton","Jacobs U.K.Limited","B1018000 - 204 - 018","480","Construction and Conversion","130156051","17/02/2017","-","Structural works","C1100"
"Wolverhampton City Council","http://opendatacommunities.org/id/metropolitan-district-council/wolverhampton","Jacobs U.K.Limited","B1018000 - 204 - 025","15,655.88","Services - Professional Fees","130156058","17/02/2017","Maintenance Programme","Centralised R&M","R4400"
"Wolverhampton City Council","http://opendatacommunities.org/id/metropolitan-district-council/wolverhampton","Jacobs U.K.Limited","B1018000 - 204 - 009","480","Construction and Conversion","130156043","17/02/2017","-","Structural works","C1100"
"Wolverhampton City Council","http://opendatacommunities.org/id/metropolitan-district-council/wolverhampton","Jacobs U.K.Limited","B1018000 - 204 - 010","480","Construction and Conversion","130156044","17/02/2017","-","Structural works","C1100"
"Wolverhampton City Council","http://opendatacommunities.org/id/metropolitan-district-council/wolverhampton","Jacobs U.K.Limited","B1018000 - 204 - 006","277.76","Construction and Conversion","130156040","17/02/2017","-","Decent Homes - Stock Improvements","C1100"
"Wolverhampton City Council","http://opendatacommunities.org/id/metropolitan-district-council/wolverhampton","Jacobs U.K.Limited","B1018000 - 204 - 019","480","Construction and Conversion","130156052","17/02/2017","-","Structural works","C1100"
"Wolverhampton City Council","http://opendatacommunities.org/id/metropolitan-district-council/wolverhampton","Jacobs U.K.Limited","B1018000 - 204 - 020","480","Construction and Conversion","130156053","17/02/2017","-","Structural works","C1100"
"Wolverhampton City Council","http://opendatacommunities.org/id/metropolitan-district-council/wolverhampton","Jacobs U.K.Limited","B1018000 - 204 - 013","312.48","Services - Professional Fees","130156047","17/02/2017","Facilities Management","Civic Centre","R4400"
"Wolverhampton City Council","http://opendatacommunities.org/id/metropolitan-district-council/wolverhampton","Jacobs U.K.Limited","B1018000 - 204 - 012","624.96","Services - Professional Fees","130156046","17/02/2017","Facilities Management","Civic Centre","R4400"
"Wolverhampton City Council","http://opendatacommunities.org/id/metropolitan-district-council/wolverhampton","Jacobs U.K.Limited","B1018000 - 204 - 023","1,164.80","Services - Professional Fees","130156056","17/02/2017","Maintenance Programme","Centralised R&M","R4400"
"Wolverhampton City Council","http://opendatacommunities.org/id/metropolitan-district-council/wolverhampton","Jacobs U.K.Limited","B1018000 - 204 - 024","1,584.40","Services - Professional Fees","130156057","17/02/2017","Maintenance Programme","Centralised R&M","R4400"
"Wolverhampton City Council","http://opendatacommunities.org/id/metropolitan-district-council/wolverhampton","James Lister & Sons Limited","0100/ 02650428","326.36","Protective Clothing","130146002","24/02/2017","Environmental Maintenance","Ground Maintenance West","R4200"
"Wolverhampton City Council","http://opendatacommunities.org/id/metropolitan-district-council/wolverhampton","James Lister & Sons Limited","0100/ 02675938","392.2","Protective Clothing","130158825","24/02/2017","Environmental Maintenance","Ground Maintenance West","R4200"
"Wolverhampton City Council","http://opendatacommunities.org/id/metropolitan-district-council/wolverhampton","James Lister & Sons Limited","0100/ 02666756","437.96","Protective Clothing","130154127","08/02/2017","Catering","Education Catering - General Overheads","R4200"
"Wolverhampton City Council","http://opendatacommunities.org/id/metropolitan-district-council/wolverhampton","James Lister & Sons Limited","0100/ 02673728","7.42","Protective Clothing","130157763","15/02/2017","Markets","Bilston Market and Licensed Operations","R4200"
"Wolverhampton City Council","http://opendatacommunities.org/id/metropolitan-district-council/wolverhampton","James Lister & Sons Limited","0100/ 02673732","333","Protective Clothing","130157767","15/02/2017","Licensing","Licensing - Private Hire Vehicles","R4200"
"Wolverhampton City Council","http://opendatacommunities.org/id/metropolitan-district-council/wolverhampton","James Lister & Sons Limited","0100/ 02671185","803.55","Protective Clothing","130156071","22/02/2017","Environmental Maintenance","Ground Maintenance West","R4200"
"Wolverhampton City Council","http://opendatacommunities.org/id/metropolitan-district-council/wolverhampton","James Lister & Sons Limited","0100/ 02666751","345","Protective Clothing","130154122","22/02/2017","Environmental Maintenance","Ground Maintenance West","R4200"
"Wolverhampton City Council","http://opendatacommunities.org/id/metropolitan-district-council/wolverhampton","James Lister & Sons Limited","0100/ 02666751","172.5","Protective Clothing","130154122","22/02/2017","Environmental Maintenance","Ground Maintenance West","R4200"
"Wolverhampton City Council","http://opendatacommunities.org/id/metropolitan-district-council/wolverhampton","James Lister & Sons Limited","240/02671644","280.54","Equipment - Purchase","190313937","22/02/2017","Fleet Services","Fleet Management","R4000"
"Wolverhampton City Council","http://opendatacommunities.org/id/metropolitan-district-council/wolverhampton","James Lister & Sons Limited","0100/ 02671184","68.32","Protective Clothing","130156070","12/02/2017","Corporate Communications","Communications & Marketing - General","R4200"
"Wolverhampton City Council","http://opendatacommunities.org/id/metropolitan-district-council/wolverhampton","James Lister & Sons Limited","0100/ 02673733","82.88","Protective Clothing","130157768","12/02/2017","Health Protection & NHS Facing","Expenditure","R4200"
"Wolverhampton City Council","http://opendatacommunities.org/id/metropolitan-district-council/wolverhampton","James Lister & Sons Limited","0100/ 02671179","27.5","Protective Clothing","130156065","03/02/2017","School Planning & Resources","Special - Transport","R4200"
"Wolverhampton City Council","http://opendatacommunities.org/id/metropolitan-district-council/wolverhampton","James Lister & Sons Limited","0100/ 02671191","53.9","Protective Clothing","130156077","03/02/2017","Highways Maintenance","Patching","R4200"
"Wolverhampton City Council","http://opendatacommunities.org/id/metropolitan-district-council/wolverhampton","James Lister & Sons Limited","0100/ 02671187","10.5","Protective Clothing","130156073","03/02/2017","Catering","Education Catering - General Overheads","R4200"
"Wolverhampton City Council","http://opendatacommunities.org/id/metropolitan-district-council/wolverhampton","James Lister & Sons Limited","0100/ 02671190","10.5","Protective Clothing","130156076","03/02/2017","Catering","Education Catering - General Overheads","R4200"
"Wolverhampton City Council","http://opendatacommunities.org/id/metropolitan-district-council/wolverhampton","James Lister & Sons Limited","0100/ 02671174","8.44","Protective Clothing","130156060","03/02/2017","Environmental Maintenance","Ground Maintenance West","R4200"
"Wolverhampton City Council","http://opendatacommunities.org/id/metropolitan-district-council/wolverhampton","James Lister & Sons Limited","0100/ 02671176","26.95","Protective Clothing","130156062","03/02/2017","Markets","Wholesale Market Facilities Management","R4200"
"Wolverhampton City Council","http://opendatacommunities.org/id/metropolitan-district-council/wolverhampton","James Lister & Sons Limited","240/02656786","38.7","Services - Professional Fees","190312436","17/02/2017","Fleet Services","Fleet Management","R4400"
"Wolverhampton City Council","http://opendatacommunities.org/id/metropolitan-district-council/wolverhampton","James Lister & Sons Limited","240/02643192","193.04","Services - Professional Fees","190312433","17/02/2017","Fleet Services","Fleet Management","R4400"
"Wolverhampton City Council","http://opendatacommunities.org/id/metropolitan-district-council/wolverhampton","James Lister & Sons Limited","240/02643193","148.7","Services - Professional Fees","190312434","17/02/2017","Fleet Services","Fleet Management","R4400"
"Wolverhampton City Council","http://opendatacommunities.org/id/metropolitan-district-council/wolverhampton","James Lister & Sons Limited","240/02656785","125.82","Equipment - Purchase","190312435","17/02/2017","Fleet Services","Fleet Management","R4000"
"Wolverhampton City Council","http://opendatacommunities.org/id/metropolitan-district-council/wolverhampton","James Lister & Sons Limited","240/02662391","111.67","Equipment - Purchase","190312437","17/02/2017","Fleet Services","Fleet Management","R4000"
"Wolverhampton City Council","http://opendatacommunities.org/id/metropolitan-district-council/wolverhampton","James Lister & Sons Limited","240/02670380","96.58","Equipment - Purchase","190312438","17/02/2017","Fleet Services","Fleet Management","R4000"
"Wolverhampton City Council","http://opendatacommunities.org/id/metropolitan-district-council/wolverhampton","James Lister & Sons Limited","0100/ 02671196","46.89","Protective Clothing","130156082","08/02/2017","Catering","Education Catering - General Overheads","R4200"
"Wolverhampton City Council","http://opendatacommunities.org/id/metropolitan-district-council/wolverhampton","James Lister & Sons Limited","0100/ 02671198","43.6","Cleaning Supplies and Materials","130156084","08/02/2017","Independent Living Service","Independent Living Service","R2705"
"Wolverhampton City Council","http://opendatacommunities.org/id/metropolitan-district-council/wolverhampton","James Lister & Sons Limited","0100/ 02455982","12.95","Protective Clothing","130059392","08/02/2017","Markets","Wolverhampton Indoor and Open Market","R4200"
"Wolverhampton City Council","http://opendatacommunities.org/id/metropolitan-district-council/wolverhampton","James Lister & Sons Limited","0100/ 02671178","56.2","Protective Clothing","130156064","15/02/2017","Fleet Services","Passenger Transport - General","R4200"
"Wolverhampton City Council","http://opendatacommunities.org/id/metropolitan-district-council/wolverhampton","James Lister & Sons Limited","0100/ 02673718","141.42","Protective Clothing","130157753","15/02/2017","Capital Programme","Capital Programme Team","R4200"
"Wolverhampton City Council","http://opendatacommunities.org/id/metropolitan-district-council/wolverhampton","James Lister & Sons Limited","0100/ 02666760","68.4","Protective Clothing","130154131","15/02/2017","Older People Provider Services","Reablement Team","R4200"
"Wolverhampton City Council","http://opendatacommunities.org/id/metropolitan-district-council/wolverhampton","James Lister & Sons Limited","0100/ 02671194","140.59","Protective Clothing","130156080","15/02/2017","Customer Services","City Direct","R4200"
"Wolverhampton City Council","http://opendatacommunities.org/id/metropolitan-district-council/wolverhampton","James Lister & Sons Limited","0100/ 02673725","213.28","Protective Clothing","130157760","15/02/2017","Markets","Bilston Market and Licensed Operations","R4200"
"Wolverhampton City Council","http://opendatacommunities.org/id/metropolitan-district-council/wolverhampton","James Lister & Sons Limited","0100/ 02673722","17.1","Protective Clothing","130157757","15/02/2017","Parking Services","Car Parks Operational Staff","R4200"
"Wolverhampton City Council","http://opendatacommunities.org/id/metropolitan-district-council/wolverhampton","James Lister & Sons Limited","0100/ 02673722","12.32","Protective Clothing","130157757","15/02/2017","Parking Services","Car Parks Operational Staff","R4200"
"Wolverhampton City Council","http://opendatacommunities.org/id/metropolitan-district-council/wolverhampton","James Lister & Sons Limited","0100/ 02673722","18.85","Protective Clothing","130157757","15/02/2017","Parking Services","Car Parks Operational Staff","R4200"
"Wolverhampton City Council","http://opendatacommunities.org/id/metropolitan-district-council/wolverhampton","James Lister & Sons Limited","0100/ 02673737","627","Protective Clothing","130157772","15/02/2017","Older People Provider Services","Reablement Team","R4200"
"Wolverhampton City Council","http://opendatacommunities.org/id/metropolitan-district-council/wolverhampton","James Lister & Sons Limited","0100/ 02673730","19.5","Protective Clothing","130157765","15/02/2017","Capital Programme","Capital Programme Team","R4200"
"Wolverhampton City Council","http://opendatacommunities.org/id/metropolitan-district-council/wolverhampton","James Lister & Sons Limited","0100/ 02673731","91.39","Protective Clothing","130157766","15/02/2017","Facilities Management","Civic Centre","R4200"
"Wolverhampton City Council","http://opendatacommunities.org/id/metropolitan-district-council/wolverhampton","James Lister & Sons Limited","0100/02574465","29.6","Cleaning Supplies and Materials","130141118","15/02/2017","Leisure Services","WV Active Catering","R2705"
"Wolverhampton City Council","http://opendatacommunities.org/id/metropolitan-district-council/wolverhampton","James Lister & Sons Limited","0100/ 02671177","74.2","Protective Clothing","130156063","15/02/2017","Fleet Services","Passenger Transport - General","R4200"
"Wolverhampton City Council","http://opendatacommunities.org/id/metropolitan-district-council/wolverhampton","James Lister & Sons Limited","0100/ 02673716","37.1","Protective Clothing","130157751","15/02/2017","Fleet Services","Passenger Transport - General","R4200"
"Wolverhampton City Council","http://opendatacommunities.org/id/metropolitan-district-council/wolverhampton","James Lister & Sons Limited","0100/ 02669204","534.96","Protective Clothing","130155057","15/02/2017","Environmental Maintenance","Ground Maintenance West","R4200"
"Wolverhampton City Council","http://opendatacommunities.org/id/metropolitan-district-council/wolverhampton","James Lister & Sons Limited","0100/ 02675933","65","Protective Clothing","130158820","17/02/2017","Public Protection","EHTS Operational Costs","R4200"
"Wolverhampton City Council","http://opendatacommunities.org/id/metropolitan-district-council/wolverhampton","James Lister & Sons Limited","0100/ 02675924","-33.52","Protective Clothing","130158811","17/02/2017","Independent Living Service","Independent Living Service","R4200"
"Wolverhampton City Council","http://opendatacommunities.org/id/metropolitan-district-council/wolverhampton","James Lister & Sons Limited","0100/ 02673738","269.6","Protective Clothing","130157773","17/02/2017","Environmental Maintenance","Ground Maintenance West","R4200"
"Wolverhampton City Council","http://opendatacommunities.org/id/metropolitan-district-council/wolverhampton","James Lister & Sons Limited","0100/ 02675931","27.6","Protective Clothing","130158818","17/02/2017","Parking Services","Car Parks Operational Staff","R4200"
"Wolverhampton City Council","http://opendatacommunities.org/id/metropolitan-district-council/wolverhampton","James Lister & Sons Limited","0100/ 02675925","18.5","Protective Clothing","130158812","17/02/2017","Fleet Services","Passenger Transport - General","R4200"
"Wolverhampton City Council","http://opendatacommunities.org/id/metropolitan-district-council/wolverhampton","James Lister & Sons Limited","0100/ 02675929","90.85","Protective Clothing","130158816","17/02/2017","Catering","Education Catering - General Overheads","R4200"
"Wolverhampton City Council","http://opendatacommunities.org/id/metropolitan-district-council/wolverhampton","James Lister & Sons Limited","0100/ 02675930","145.54","Protective Clothing","130158817","17/02/2017","Library Services","Global Budgets","R4200"
"Wolverhampton City Council","http://opendatacommunities.org/id/metropolitan-district-council/wolverhampton","James Lister & Sons Limited","0100/ 02675935","7.65","Protective Clothing","130158822","17/02/2017","Highways Maintenance","Patching","R4200"
"Wolverhampton City Council","http://opendatacommunities.org/id/metropolitan-district-council/wolverhampton","James Lister & Sons Limited","0100/ 02671186","63","Protective Clothing","130156072","08/02/2017","Markets","Bilston Market and Licensed Operations","R4200"
"Wolverhampton City Council","http://opendatacommunities.org/id/metropolitan-district-council/wolverhampton","James Lister & Sons Limited","0100/ 02671195","29.43","Protective Clothing","130156081","08/02/2017","Markets","Wholesale Market Facilities Management","R4200"
"Wolverhampton City Council","http://opendatacommunities.org/id/metropolitan-district-council/wolverhampton","James Lister & Sons Limited","240/02668265","85.53","Equipment - Purchase","190309515","08/02/2017","Fleet Services","Fleet Management","R4000"
"Wolverhampton City Council","http://opendatacommunities.org/id/metropolitan-district-council/wolverhampton","James Lister & Sons Limited","0100/ 02671188","130","Protective Clothing","130156074","08/02/2017","Public Protection","EHTS Operational Costs","R4200"
"Wolverhampton City Council","http://opendatacommunities.org/id/metropolitan-district-council/wolverhampton","James Lister & Sons Limited","0100/ 02671175","15.32","Protective Clothing","130156061","03/02/2017","Catering","Education Catering - General Overheads","R4200"
"Wolverhampton City Council","http://opendatacommunities.org/id/metropolitan-district-council/wolverhampton","James Lister & Sons Limited","0100/ 02671181","7.42","Protective Clothing","130156067","03/02/2017","Markets","Wednesfield Street Market","R4200"
"Wolverhampton City Council","http://opendatacommunities.org/id/metropolitan-district-council/wolverhampton","James Lister & Sons Limited","0100/ 02671183","7.65","Protective Clothing","130156069","03/02/2017","Markets","Wednesfield Street Market","R4200"
"Wolverhampton City Council","http://opendatacommunities.org/id/metropolitan-district-council/wolverhampton","James Lister & Sons Limited","0100/ 02671182","12.95","Protective Clothing","130156068","03/02/2017","Markets","Wednesfield Street Market","R4200"
"Wolverhampton City Council","http://opendatacommunities.org/id/metropolitan-district-council/wolverhampton","James Lister & Sons Limited","0100/ 02671189","58.5","Protective Clothing","130156075","12/02/2017","Capital Programme","Capital Programme Team","R4200"
"Wolverhampton City Council","http://opendatacommunities.org/id/metropolitan-district-council/wolverhampton","James Lister & Sons Limited","0100/ 02669198","29.94","Cleaning Supplies and Materials","130155051","01/02/2017","Independent Living Service","Independent Living Service","R2705"
"Wolverhampton City Council","http://opendatacommunities.org/id/metropolitan-district-council/wolverhampton","James Lister & Sons Limited","0100/ 02669202","74.2","Protective Clothing","130155055","01/02/2017","Fleet Services","Passenger Transport - General","R4200"
"Wolverhampton City Council","http://opendatacommunities.org/id/metropolitan-district-council/wolverhampton","James Lister & Sons Limited","0100/ 02669206","85.9","Protective Clothing","130155059","01/02/2017","Highways Maintenance","Patching","R4200"
"Wolverhampton City Council","http://opendatacommunities.org/id/metropolitan-district-council/wolverhampton","James Lister & Sons Limited","0100/ 02669195","21","Protective Clothing","130155048","01/02/2017","Markets","Wholesale Market Facilities Management","R4200"
"Wolverhampton City Council","http://opendatacommunities.org/id/metropolitan-district-council/wolverhampton","James Lister & Sons Limited","0100/ 02669200","426","Protective Clothing","130155053","01/02/2017","Highways Maintenance","Patching","R4200"
"Wolverhampton City Council","http://opendatacommunities.org/id/metropolitan-district-council/wolverhampton","James Lister & Sons Limited","0100/010326","49","Protective Clothing","130153388","01/02/2017","Capital Programme","Capital Programme Team","R4200"
"Wolverhampton City Council","http://opendatacommunities.org/id/metropolitan-district-council/wolverhampton","James Lister & Sons Limited","0100/ 02669203","115.5","Protective Clothing","130155056","01/02/2017","Operation & Maintenance of Existing Network","Condition Surveys","R4200"
"Wolverhampton City Council","http://opendatacommunities.org/id/metropolitan-district-council/wolverhampton","James Lister & Sons Limited","0100/ 02666741","-179.7","Protective Clothing","130154112","01/02/2017","Fleet Services","Passenger Transport - General","R4200"
"Wolverhampton City Council","http://opendatacommunities.org/id/metropolitan-district-council/wolverhampton","James Lister & Sons Limited","0100/ 02669197","54.7","Protective Clothing","130155050","01/02/2017","Fleet Services","Passenger Transport - General","R4200"
"Wolverhampton City Council","http://opendatacommunities.org/id/metropolitan-district-council/wolverhampton","James Lister & Sons Limited","0100/ 02669196","14.84","Protective Clothing","130155049","01/02/2017","Parking Services","Car Parks Operational Staff","R4200"
"Wolverhampton City Council","http://opendatacommunities.org/id/metropolitan-district-council/wolverhampton","James Lister & Sons Limited","0100/ 02669205","141.09","Protective Clothing","130155058","01/02/2017","Facilities Management","Civic Centre","R4200"
"Wolverhampton City Council","http://opendatacommunities.org/id/metropolitan-district-council/wolverhampton","James Lister & Sons Limited","0100/ 02669199","17.84","Protective Clothing","130155052","01/02/2017","Facilities Management","Civic Centre","R4200"
"Wolverhampton City Council","http://opendatacommunities.org/id/metropolitan-district-council/wolverhampton","James Lister & Sons Limited","0100/ 02675928","22.98","Protective Clothing","130158815","22/02/2017","Catering","Education Catering - General Overheads","R4200"
"Wolverhampton City Council","http://opendatacommunities.org/id/metropolitan-district-council/wolverhampton","James Lister & Sons Limited","0100/ 02673727","22.43","Cleaning Supplies and Materials","130157762","22/02/2017","Independent Living Service","Independent Living Service","R2705"
"Wolverhampton City Council","http://opendatacommunities.org/id/metropolitan-district-council/wolverhampton","James Lister & Sons Limited","0100/ 02673727","2.85","Cleaning Supplies and Materials","130157762","22/02/2017","Independent Living Service","Independent Living Service","R2705"
"Wolverhampton City Council","http://opendatacommunities.org/id/metropolitan-district-council/wolverhampton","James Lister & Sons Limited","0100/ 02673727","1.48","Cleaning Supplies and Materials","130157762","22/02/2017","Independent Living Service","Independent Living Service","R2705"
"Wolverhampton City Council","http://opendatacommunities.org/id/metropolitan-district-council/wolverhampton","James Lister & Sons Limited","0100/ 02673727","314.11","Cleaning Supplies and Materials","130157762","22/02/2017","Independent Living Service","Independent Living Service","R2705"
"Wolverhampton City Council","http://opendatacommunities.org/id/metropolitan-district-council/wolverhampton","James Lister & Sons Limited","0100/ 02673727","8.05","Cleaning Supplies and Materials","130157762","22/02/2017","Independent Living Service","Independent Living Service","R2705"
"Wolverhampton City Council","http://opendatacommunities.org/id/metropolitan-district-council/wolverhampton","James Lister & Sons Limited","0100/ 02673727","105","Cleaning Supplies and Materials","130157762","22/02/2017","Independent Living Service","Independent Living Service","R2705"
"Wolverhampton City Council","http://opendatacommunities.org/id/metropolitan-district-council/wolverhampton","James Lister & Sons Limited","0100/ 02675936","448.32","R&M - Departmental planned (external)","130158823","22/02/2017","Bereavement Services","Crematorium","R2001"
"Wolverhampton City Council","http://opendatacommunities.org/id/metropolitan-district-council/wolverhampton","James Lister & Sons Limited","0100/ 02675932","19.5","Protective Clothing","130158819","22/02/2017","Capital Programme","Capital Programme Team","R4200"
"Wolverhampton City Council","http://opendatacommunities.org/id/metropolitan-district-council/wolverhampton","James Lister & Sons Limited","0100/ 02675934","19.5","Protective Clothing","130158821","22/02/2017","Capital Programme","Capital Programme Team","R4200"
"Wolverhampton City Council","http://opendatacommunities.org/id/metropolitan-district-council/wolverhampton","James Lister & Sons Limited","0100/ 02675927","99.98","Protective Clothing","130158814","22/02/2017","Capital Programme","Capital Programme Team","R4200"
"Wolverhampton City Council","http://opendatacommunities.org/id/metropolitan-district-council/wolverhampton","James Lister & Sons Limited","0100/ 02666758","197.25","Protective Clothing","130154129","22/02/2017","Catering","Education Catering - General Overheads","R4200"
"Wolverhampton City Council","http://opendatacommunities.org/id/metropolitan-district-council/wolverhampton","James Lister & Sons Limited","0100/ 02671197","312.84","Protective Clothing","130156083","22/02/2017","Capital Programme","Capital Programme Team","R4200"
"Wolverhampton City Council","http://opendatacommunities.org/id/metropolitan-district-council/wolverhampton","James Lister & Sons Limited","0100/ 02675937","258.72","Protective Clothing","130158824","22/02/2017","Catering","Education Catering - General Overheads","R4200"
"Wolverhampton City Council","http://opendatacommunities.org/id/metropolitan-district-council/wolverhampton","James Lister & Sons Limited","0100/ 02673726","232.46","Protective Clothing","130157761","22/02/2017","Catering","Education Catering - General Overheads","R4200"
"Wolverhampton City Council","http://opendatacommunities.org/id/metropolitan-district-council/wolverhampton","James Lister & Sons Limited","0100/ 02673729","393.02","Protective Clothing","130157764","22/02/2017","Catering","Education Catering - General Overheads","R4200"
"Wolverhampton City Council","http://opendatacommunities.org/id/metropolitan-district-council/wolverhampton","James Lister & Sons Limited","0100/ 02675923","-12.9","Protective Clothing","130158810","22/02/2017","Capital Programme","Capital Programme Team","R4200"
"Wolverhampton City Council","http://opendatacommunities.org/id/metropolitan-district-council/wolverhampton","JCM Seating Solutions Limited","68945","128.49","Equipment - Purchase","130153938","03/02/2017","Independent Living Service","Independent Living Service","R4000"
"Wolverhampton City Council","http://opendatacommunities.org/id/metropolitan-district-council/wolverhampton","JCM Seating Solutions Limited","69075","2,321.53","Equipment - Purchase","130155556","12/02/2017","Independent Living Service","Independent Living Service","R4000"
"Wolverhampton City Council","http://opendatacommunities.org/id/metropolitan-district-council/wolverhampton","Jim�S Transfleet","01111A","1,754.20","Client Transport","130156285","08/02/2017","School Planning & Resources","Special - Transport","R3042"
"Wolverhampton City Council","http://opendatacommunities.org/id/metropolitan-district-council/wolverhampton","Jim�S Transfleet","01111AA","1,686.00","Client Transport","130156286","08/02/2017","School Planning & Resources","Special - Transport","R3042"
"Wolverhampton City Council","http://opendatacommunities.org/id/metropolitan-district-council/wolverhampton","Johal Dairies Limited","5620122016","904.86","Provisions (Resale)","130156550","12/02/2017","Catering","Civic Centre Catering","R4102"
"Wolverhampton City Council","http://opendatacommunities.org/id/metropolitan-district-council/wolverhampton","Johal Dairies Limited","5935122016","261.33","Provisions (Resale)","130156551","12/02/2017","Leisure Services","Bert Williams Leisure Centre Caf�","R4102"
"Wolverhampton City Council","http://opendatacommunities.org/id/metropolitan-district-council/wolverhampton","Johal Dairies Limited","WKIT122016","8,511.48","Provisions (Resale)","130156553","12/02/2017","Catering","Education Catering - General Overheads","R4102"
"Wolverhampton City Council","http://opendatacommunities.org/id/metropolitan-district-council/wolverhampton","Johal Dairies Limited","WKIT122016","-8,511.48","Provisions (Resale)","130156553","12/02/2017","Catering","Education Catering - General Overheads","R4102"
"Wolverhampton City Council","http://opendatacommunities.org/id/metropolitan-district-council/wolverhampton","Johal Dairies Limited","WKIT122016","8,485.26","Provisions (Resale)","130156553","12/02/2017","Catering","Education Catering - General Overheads","R4102"
"Wolverhampton City Council","http://opendatacommunities.org/id/metropolitan-district-council/wolverhampton","Johal Dairies Limited","WKIT122016","26.22","Provisions (Resale)","130156553","12/02/2017","Catering","Education Catering - General Overheads","R4102"
"Wolverhampton City Council","http://opendatacommunities.org/id/metropolitan-district-council/wolverhampton","Johal Dairies Limited","824095","146.82","Provisions (Resale)","130154491","12/02/2017","Older People Provider Services","Bradley Lodge Resource Centre","R4102"
"Wolverhampton City Council","http://opendatacommunities.org/id/metropolitan-district-council/wolverhampton","Johal Dairies Limited","6525122016","133.33","Provisions (Not for resale)","130156552","08/02/2017","Leisure Services","WV Active Catering","R4101"
"Wolverhampton City Council","http://opendatacommunities.org/id/metropolitan-district-council/wolverhampton","Johal Dairies Limited","819945","21.37","Provisions (Not for resale)","130154490","01/02/2017","Older People Provider Services","Blakenhall Resource Centre","R4101"
"Wolverhampton City Council","http://opendatacommunities.org/id/metropolitan-district-council/wolverhampton","Johal Dairies Limited","828744","21.19","Provisions (Not for resale)","130154503","01/02/2017","Learning Disability Provider","Duke Street Bungalows","R4101"
"Wolverhampton City Council","http://opendatacommunities.org/id/metropolitan-district-council/wolverhampton","Johal Dairies Limited","833105","21.19","Provisions (Not for resale)","130154676","01/02/2017","Learning Disability Provider","Duke Street Bungalows","R4101"
"Wolverhampton City Council","http://opendatacommunities.org/id/metropolitan-district-council/wolverhampton","Johal Dairies Limited","815539","21.19","Provisions (Not for resale)","130154479","01/02/2017","Learning Disability Provider","Duke Street Bungalows","R4101"
"Wolverhampton City Council","http://opendatacommunities.org/id/metropolitan-district-council/wolverhampton","Johal Dairies Limited","819902","21.19","Provisions (Not for resale)","130154487","01/02/2017","Learning Disability Provider","Duke Street Bungalows","R4101"
"Wolverhampton City Council","http://opendatacommunities.org/id/metropolitan-district-council/wolverhampton","Johal Dairies Limited","837548","24.81","Provisions (Not for resale)","130154687","01/02/2017","Older People Provider Services","Blakenhall Resource Centre","R4101"
"Wolverhampton City Council","http://opendatacommunities.org/id/metropolitan-district-council/wolverhampton","Johal Dairies Limited","844749","25.19","Provisions (Not for resale)","130154700","01/02/2017","Learning Disability Provider","Duke Street Bungalows","R4101"
"Wolverhampton City Council","http://opendatacommunities.org/id/metropolitan-district-council/wolverhampton","Johal Dairies Limited","824112","22.09","Provisions (Not for resale)","130154497","01/02/2017","Learning Disability Provider","Duke Street Bungalows","R4101"
"Wolverhampton City Council","http://opendatacommunities.org/id/metropolitan-district-council/wolverhampton","Johal Dairies Limited","815541","36.24","Provisions (Not for resale)","130154481","01/02/2017","Learning Disability Provider","Duke Street Bungalows","R4101"
"Wolverhampton City Council","http://opendatacommunities.org/id/metropolitan-district-council/wolverhampton","Johal Dairies Limited","819904","36.24","Provisions (Not for resale)","130154489","01/02/2017","Learning Disability Provider","Duke Street Bungalows","R4101"
"Wolverhampton City Council","http://opendatacommunities.org/id/metropolitan-district-council/wolverhampton","Johal Dairies Limited","844751","28.34","Provisions (Not for resale)","130154702","01/02/2017","Older People Provider Services","Blakenhall Resource Centre","R4101"
"Wolverhampton City Council","http://opendatacommunities.org/id/metropolitan-district-council/wolverhampton","Johal Dairies Limited","847094","34.72","Provisions (Not for resale)","130154709","01/02/2017","Older People Provider Services","Blakenhall Resource Centre","R4101"
"Wolverhampton City Council","http://opendatacommunities.org/id/metropolitan-district-council/wolverhampton","Johal Dairies Limited","833148","27.62","Provisions (Not for resale)","130154679","01/02/2017","Older People Provider Services","Blakenhall Resource Centre","R4101"
"Wolverhampton City Council","http://opendatacommunities.org/id/metropolitan-district-council/wolverhampton","Johal Dairies Limited","824110","13.75","Provisions (Not for resale)","130154495","01/02/2017","Learning Disability Provider","Duke Street Bungalows","R4101"
"Wolverhampton City Council","http://opendatacommunities.org/id/metropolitan-district-council/wolverhampton","Johal Dairies Limited","847091","13.75","Provisions (Not for resale)","130154706","01/02/2017","Learning Disability Provider","Duke Street Bungalows","R4101"
"Wolverhampton City Council","http://opendatacommunities.org/id/metropolitan-district-council/wolverhampton","Johal Dairies Limited","833106","25.19","Provisions (Not for resale)","130154677","01/02/2017","Learning Disability Provider","Duke Street Bungalows","R4101"
"Wolverhampton City Council","http://opendatacommunities.org/id/metropolitan-district-council/wolverhampton","Johal Dairies Limited","828745","25.19","Provisions (Not for resale)","130154504","01/02/2017","Learning Disability Provider","Duke Street Bungalows","R4101"
"Wolverhampton City Council","http://opendatacommunities.org/id/metropolitan-district-council/wolverhampton","Johal Dairies Limited","841563","25.19","Provisions (Not for resale)","130154693","01/02/2017","Learning Disability Provider","Duke Street Bungalows","R4101"
"Wolverhampton City Council","http://opendatacommunities.org/id/metropolitan-district-council/wolverhampton","Johal Dairies Limited","819903","25.19","Provisions (Not for resale)","130154488","01/02/2017","Learning Disability Provider","Duke Street Bungalows","R4101"
"Wolverhampton City Council","http://opendatacommunities.org/id/metropolitan-district-council/wolverhampton","Johal Dairies Limited","815540","25.19","Provisions (Not for resale)","130154480","01/02/2017","Learning Disability Provider","Duke Street Bungalows","R4101"
"Wolverhampton City Council","http://opendatacommunities.org/id/metropolitan-district-council/wolverhampton","Johal Dairies Limited","841564","36.24","Provisions (Not for resale)","130154694","01/02/2017","Learning Disability Provider","Duke Street Bungalows","R4101"
"Wolverhampton City Council","http://opendatacommunities.org/id/metropolitan-district-council/wolverhampton","Johal Dairies Limited","833107","36.24","Provisions (Not for resale)","130154678","01/02/2017","Learning Disability Provider","Duke Street Bungalows","R4101"
"Wolverhampton City Council","http://opendatacommunities.org/id/metropolitan-district-council/wolverhampton","Johal Dairies Limited","844750","36.24","Provisions (Not for resale)","130154701","01/02/2017","Learning Disability Provider","Duke Street Bungalows","R4101"
"Wolverhampton City Council","http://opendatacommunities.org/id/metropolitan-district-council/wolverhampton","Johal Dairies Limited","841606","48.27","Provisions (Not for resale)","130154695","01/02/2017","Older People Provider Services","Blakenhall Resource Centre","R4101"
"Wolverhampton City Council","http://opendatacommunities.org/id/metropolitan-district-council/wolverhampton","Johal Dairies Limited","837503","1","Provisions (Resale)","130154683","01/02/2017","Older People Provider Services","Ekta Day Centre","R4102"
"Wolverhampton City Council","http://opendatacommunities.org/id/metropolitan-district-council/wolverhampton","Johal Dairies Limited","828743","1","Provisions (Resale)","130154502","01/02/2017","Older People Provider Services","Ekta Day Centre","R4102"
"Wolverhampton City Council","http://opendatacommunities.org/id/metropolitan-district-council/wolverhampton","Johal Dairies Limited","833104","1","Provisions (Resale)","130154675","01/02/2017","Older People Provider Services","Ekta Day Centre","R4102"
"Wolverhampton City Council","http://opendatacommunities.org/id/metropolitan-district-council/wolverhampton","Johal Dairies Limited","828788","45.29","Provisions (Not for resale)","130154506","01/02/2017","Older People Provider Services","Blakenhall Resource Centre","R4101"
"Wolverhampton City Council","http://opendatacommunities.org/id/metropolitan-district-council/wolverhampton","Johal Dairies Limited","841561","1","Provisions (Resale)","130154691","01/02/2017","Older People Provider Services","Ekta Day Centre","R4102"
"Wolverhampton City Council","http://opendatacommunities.org/id/metropolitan-district-council/wolverhampton","Johal Dairies Limited","815538","0.78","Catering","130154478","01/02/2017","Mental Health Commissioning","Head Start Wolverhampton","R4100"
"Wolverhampton City Council","http://opendatacommunities.org/id/metropolitan-district-council/wolverhampton","Johal Dairies Limited","815581","41.4","Provisions (Not for resale)","130154482","12/02/2017","Older People Provider Services","Blakenhall Resource Centre","R4101"
"Wolverhampton City Council","http://opendatacommunities.org/id/metropolitan-district-council/wolverhampton","Johal Dairies Limited","824111","16.7","Provisions (Not for resale)","130154496","01/02/2017","Learning Disability Provider","Duke Street Bungalows","R4101"
"Wolverhampton City Council","http://opendatacommunities.org/id/metropolitan-district-council/wolverhampton","Johal Dairies Limited","841562","21.19","Provisions (Not for resale)","130154692","01/02/2017","Learning Disability Provider","Duke Street Bungalows","R4101"
"Wolverhampton City Council","http://opendatacommunities.org/id/metropolitan-district-council/wolverhampton","Johal Dairies Limited","844748","21.19","Provisions (Not for resale)","130154699","01/02/2017","Learning Disability Provider","Duke Street Bungalows","R4101"
"Wolverhampton City Council","http://opendatacommunities.org/id/metropolitan-district-council/wolverhampton","Johal Dairies Limited","841559","113.42","Provisions (Not for resale)","130154690","03/02/2017","Visitor Economy","Bantock - Tea Rooms","R4101"
"Wolverhampton City Council","http://opendatacommunities.org/id/metropolitan-district-council/wolverhampton","Johal Dairies Limited","844745","16.74","Provisions (Not for resale)","130154697","03/02/2017","Visitor Economy","Art Gallery Tea Room","R4101"
"Wolverhampton City Council","http://opendatacommunities.org/id/metropolitan-district-council/wolverhampton","Johal Dairies Limited","847084","133.83","Provisions (Resale)","130154703","03/02/2017","Older People Provider Services","Bradley Lodge Resource Centre","R4102"
"Wolverhampton City Council","http://opendatacommunities.org/id/metropolitan-district-council/wolverhampton","Johal Dairies Limited","847092","16.7","Provisions (Not for resale)","130154707","03/02/2017","Learning Disability Provider","Duke Street Bungalows","R4101"
"Wolverhampton City Council","http://opendatacommunities.org/id/metropolitan-district-council/wolverhampton","Johal Dairies Limited","837489","143.27","Provisions (Resale)","130154680","03/02/2017","Older People Provider Services","Bradley Lodge Resource Centre","R4102"
"Wolverhampton City Council","http://opendatacommunities.org/id/metropolitan-district-council/wolverhampton","Johal Dairies Limited","844741","142.12","Provisions (Resale)","130154696","03/02/2017","Older People Provider Services","Bradley Lodge Resource Centre","R4102"
"Wolverhampton City Council","http://opendatacommunities.org/id/metropolitan-district-council/wolverhampton","Johal Dairies Limited","819887","136.65","Provisions (Resale)","130154483","03/02/2017","Older People Provider Services","Bradley Lodge Resource Centre","R4102"
"Wolverhampton City Council","http://opendatacommunities.org/id/metropolitan-district-council/wolverhampton","Johal Dairies Limited","847089","83.89","Provisions (Not for resale)","130154705","03/02/2017","Visitor Economy","Bantock - Tea Rooms","R4101"
"Wolverhampton City Council","http://opendatacommunities.org/id/metropolitan-district-council/wolverhampton","Johal Dairies Limited","828729","127.7","Provisions (Resale)","130154499","03/02/2017","Older People Provider Services","Bradley Lodge Resource Centre","R4102"
"Wolverhampton City Council","http://opendatacommunities.org/id/metropolitan-district-council/wolverhampton","Johal Dairies Limited","841547","131.97","Provisions (Resale)","130154688","03/02/2017","Older People Provider Services","Bradley Lodge Resource Centre","R4102"
"Wolverhampton City Council","http://opendatacommunities.org/id/metropolitan-district-council/wolverhampton","Johal Dairies Limited","833090","146.52","Provisions (Resale)","130154672","03/02/2017","Older People Provider Services","Bradley Lodge Resource Centre","R4102"
"Wolverhampton City Council","http://opendatacommunities.org/id/metropolitan-district-council/wolverhampton","Johal Dairies Limited","837506","36.24","Provisions (Not for resale)","130154686","03/02/2017","Learning Disability Provider","Duke Street Bungalows","R4101"
"Wolverhampton City Council","http://opendatacommunities.org/id/metropolitan-district-council/wolverhampton","Johal Dairies Limited","844746","55.39","Provisions (Not for resale)","130154698","03/02/2017","Visitor Economy","Bantock - Tea Rooms","R4101"
"Wolverhampton City Council","http://opendatacommunities.org/id/metropolitan-district-council/wolverhampton","Johal Dairies Limited","847088","18.54","Provisions (Not for resale)","130154704","03/02/2017","Visitor Economy","Art Gallery Tea Room","R4101"
"Wolverhampton City Council","http://opendatacommunities.org/id/metropolitan-district-council/wolverhampton","Johal Dairies Limited","837505","25.19","Provisions (Not for resale)","130154685","03/02/2017","Learning Disability Provider","Duke Street Bungalows","R4101"
"Wolverhampton City Council","http://opendatacommunities.org/id/metropolitan-district-council/wolverhampton","Johal Dairies Limited","781995","146.73","Provisions (Not for resale)","130139611","03/02/2017","Visitor Economy","Bantock - Tea Rooms","R4101"
"Wolverhampton City Council","http://opendatacommunities.org/id/metropolitan-district-council/wolverhampton","Johal Dairies Limited","837504","21.19","Provisions (Not for resale)","130154684","03/02/2017","Learning Disability Provider","Duke Street Bungalows","R4101"
"Wolverhampton City Council","http://opendatacommunities.org/id/metropolitan-district-council/wolverhampton","Johal Dairies Limited","847093","22.09","Provisions (Not for resale)","130154708","03/02/2017","Learning Disability Provider","Duke Street Bungalows","R4101"
"Wolverhampton City Council","http://opendatacommunities.org/id/metropolitan-district-council/wolverhampton","Johal Dairies Limited","5466122016","216.91","Provisions (Not for resale)","130156549","08/02/2017","Leisure Services","WV Active Catering","R4101"
"Wolverhampton City Council","http://opendatacommunities.org/id/metropolitan-district-council/wolverhampton","Johal Dairies Limited","824153","29.85","Provisions (Not for resale)","130154498","17/02/2017","Older People Provider Services","Blakenhall Resource Centre","R4101"
"Wolverhampton City Council","http://opendatacommunities.org/id/metropolitan-district-council/wolverhampton","Johal Dairies Limited","824106","11.94","Provisions (Not for resale)","130154492","01/02/2017","Visitor Economy","Art Gallery Tea Room","R4101"
"Wolverhampton City Council","http://opendatacommunities.org/id/metropolitan-district-council/wolverhampton","Johal Dairies Limited","828741","77.92","Provisions (Not for resale)","130154501","01/02/2017","Visitor Economy","Bantock - Tea Rooms","R4101"
"Wolverhampton City Council","http://opendatacommunities.org/id/metropolitan-district-council/wolverhampton","Johal Dairies Limited","815535","92.69","Provisions (Not for resale)","130154476","01/02/2017","Visitor Economy","Bantock - Tea Rooms","R4101"
"Wolverhampton City Council","http://opendatacommunities.org/id/metropolitan-district-council/wolverhampton","Johal Dairies Limited","833102","89.86","Provisions (Not for resale)","130154674","01/02/2017","Visitor Economy","Bantock - Tea Rooms","R4101"
"Wolverhampton City Council","http://opendatacommunities.org/id/metropolitan-district-council/wolverhampton","Johal Dairies Limited","837501","61.72","Provisions (Not for resale)","130154682","01/02/2017","Visitor Economy","Bantock - Tea Rooms","R4101"
"Wolverhampton City Council","http://opendatacommunities.org/id/metropolitan-district-council/wolverhampton","Johal Dairies Limited","819899","108.08","Provisions (Not for resale)","130154485","01/02/2017","Visitor Economy","Bantock - Tea Rooms","R4101"
"Wolverhampton City Council","http://opendatacommunities.org/id/metropolitan-district-council/wolverhampton","Johal Dairies Limited","819898","41.66","Provisions (Not for resale)","130154484","01/02/2017","Visitor Economy","Art Gallery Tea Room","R4101"
"Wolverhampton City Council","http://opendatacommunities.org/id/metropolitan-district-council/wolverhampton","Johal Dairies Limited","841558","25.78","Provisions (Not for resale)","130154689","01/02/2017","Visitor Economy","Art Gallery Tea Room","R4101"
"Wolverhampton City Council","http://opendatacommunities.org/id/metropolitan-district-council/wolverhampton","Johal Dairies Limited","824107","67.55","Provisions (Not for resale)","130154493","01/02/2017","Visitor Economy","Bantock - Tea Rooms","R4101"
"Wolverhampton City Council","http://opendatacommunities.org/id/metropolitan-district-council/wolverhampton","Johal Dairies Limited","828740","33.96","Provisions (Not for resale)","130154500","01/02/2017","Visitor Economy","Art Gallery Tea Room","R4101"
"Wolverhampton City Council","http://opendatacommunities.org/id/metropolitan-district-council/wolverhampton","Johal Dairies Limited","837500","36.38","Provisions (Not for resale)","130154681","01/02/2017","Visitor Economy","Art Gallery Tea Room","R4101"
"Wolverhampton City Council","http://opendatacommunities.org/id/metropolitan-district-council/wolverhampton","Johal Dairies Limited","833101","30.74","Provisions (Not for resale)","130154673","01/02/2017","Visitor Economy","Art Gallery Tea Room","R4101"
"Wolverhampton City Council","http://opendatacommunities.org/id/metropolitan-district-council/wolverhampton","Johal Dairies Limited","790685","1","Provisions (Not for resale)","130139629","08/02/2017","Older People Provider Services","Ekta Day Centre","R4101"
"Wolverhampton City Council","http://opendatacommunities.org/id/metropolitan-district-council/wolverhampton","Johal Dairies Limited","795362","1","Provisions (Not for resale)","130139638","08/02/2017","Older People Provider Services","Ekta Day Centre","R4101"
"Wolverhampton City Council","http://opendatacommunities.org/id/metropolitan-district-council/wolverhampton","Johal Dairies Limited","795363","4.52","Provisions (Not for resale)","130139639","03/02/2017","Mental Health Commissioning","Headstart Phase 3","R4101"
"Wolverhampton City Council","http://opendatacommunities.org/id/metropolitan-district-council/wolverhampton","Johal Dairies Limited","795363","-4.52","Provisions (Not for resale)","130139639","03/02/2017","Mental Health Commissioning","Headstart Phase 3","R4101"
"Wolverhampton City Council","http://opendatacommunities.org/id/metropolitan-district-council/wolverhampton","Johal Dairies Limited","795363","1.56","Provisions (Not for resale)","130139639","03/02/2017","Mental Health Commissioning","Headstart Phase 3","R4101"
"Wolverhampton City Council","http://opendatacommunities.org/id/metropolitan-district-council/wolverhampton","Johal Dairies Limited","795363","2.96","Provisions (Not for resale)","130139639","03/02/2017","Mental Health Commissioning","Headstart Phase 3","R4101"
"Wolverhampton City Council","http://opendatacommunities.org/id/metropolitan-district-council/wolverhampton","Johal Dairies Limited","815523","133.79","Provisions (Resale)","130154474","03/02/2017","Older People Provider Services","Bradley Lodge Resource Centre","R4102"
"Wolverhampton City Council","http://opendatacommunities.org/id/metropolitan-district-council/wolverhampton","John Bradshaw & Son Limited T/A Bcl","141397","34.28","Storage","130155557","01/02/2017","Housing Revenue Account","Duty Office","R4910"
"Wolverhampton City Council","http://opendatacommunities.org/id/metropolitan-district-council/wolverhampton","John Bradshaw & Son Limited T/A Bcl","142123","35.43","Storage","130155558","01/02/2017","Housing Revenue Account","Duty Office","R4910"
"Wolverhampton City Council","http://opendatacommunities.org/id/metropolitan-district-council/wolverhampton","Johnson Poole & Bloomer Limited","63672","5,994.38","Services - Professional Fees","130155559","03/02/2017","Estates and Valuations","Disposal Costs","R4400"
"Wolverhampton City Council","http://opendatacommunities.org/id/metropolitan-district-council/wolverhampton","Johnson Poole & Bloomer Limited","63683","563","Services - Professional Fees","130157926","22/02/2017","Housing","Wholly Owned Company - Operations","R4400"
"Wolverhampton City Council","http://opendatacommunities.org/id/metropolitan-district-council/wolverhampton","Johnson Poole & Bloomer Limited","SC23443","6,500.00","Construction and Conversion","130157262","12/02/2017","-","Site Remediation Farndale","C1100"
"Wolverhampton City Council","http://opendatacommunities.org/id/metropolitan-district-council/wolverhampton","Johnson Poole & Bloomer Limited","63682","563","Services - Professional Fees","130157524","15/02/2017","Housing Revenue Account","HRA General","R4400"
"Wolverhampton City Council","http://opendatacommunities.org/id/metropolitan-district-council/wolverhampton","Johnson Poole & Bloomer Limited","63684","622.3","Services - Professional Fees","130157927","15/02/2017","Estates and Valuations","Disposal Costs","R4400"
"Wolverhampton City Council","http://opendatacommunities.org/id/metropolitan-district-council/wolverhampton","Johnston Sweepers Limited","61474805","99.48","Equipment - Purchase","190314497","24/02/2017","Fleet Services","Fleet Management","R4000"
"Wolverhampton City Council","http://opendatacommunities.org/id/metropolitan-district-council/wolverhampton","Johnston Sweepers Limited","61474805","77.41","Equipment - Purchase","190314497","24/02/2017","Fleet Services","Fleet Management","R4000"
"Wolverhampton City Council","http://opendatacommunities.org/id/metropolitan-district-council/wolverhampton","Johnston Sweepers Limited","61474853","38.93","Equipment - Purchase","190314498","24/02/2017","Fleet Services","Fleet Management","R4000"
"Wolverhampton City Council","http://opendatacommunities.org/id/metropolitan-district-council/wolverhampton","Johnston Sweepers Limited","61468409","75.35","Equipment - Purchase","190310321","12/02/2017","Fleet Services","Fleet Management","R4000"
"Wolverhampton City Council","http://opendatacommunities.org/id/metropolitan-district-council/wolverhampton","Johnston Sweepers Limited","61469629","21.78","Equipment - Purchase","190313938","22/02/2017","Fleet Services","Fleet Management","R4000"
"Wolverhampton City Council","http://opendatacommunities.org/id/metropolitan-district-council/wolverhampton","Johnston Sweepers Limited","61470150","33.66","Equipment - Purchase","190313939","22/02/2017","Fleet Services","Fleet Management","R4000"
"Wolverhampton City Council","http://opendatacommunities.org/id/metropolitan-district-council/wolverhampton","Johnston Sweepers Limited","61462983.1","139.02","Equipment - Purchase","190311785","15/02/2017","Fleet Services","Fleet Management","R4000"
"Wolverhampton City Council","http://opendatacommunities.org/id/metropolitan-district-council/wolverhampton","Johnston Sweepers Limited","61462983.1","297.87","Equipment - Purchase","190311785","15/02/2017","Fleet Services","Fleet Management","R4000"
"Wolverhampton City Council","http://opendatacommunities.org/id/metropolitan-district-council/wolverhampton","Johnston Sweepers Limited","61462983.1","176.16","Equipment - Purchase","190311785","15/02/2017","Fleet Services","Fleet Management","R4000"
"Wolverhampton City Council","http://opendatacommunities.org/id/metropolitan-district-council/wolverhampton","Johnston Sweepers Limited","61462983.1","56.38","Equipment - Purchase","190311785","15/02/2017","Fleet Services","Fleet Management","R4000"
"Wolverhampton City Council","http://opendatacommunities.org/id/metropolitan-district-council/wolverhampton","Johnston Sweepers Limited","65257602","142","Services - Professional Fees","190311788","15/02/2017","Fleet Services","Fleet Management","R4400"
"Wolverhampton City Council","http://opendatacommunities.org/id/metropolitan-district-council/wolverhampton","Johnston Sweepers Limited","65257602","6","Services - Professional Fees","190311788","15/02/2017","Fleet Services","Fleet Management","R4400"
"Wolverhampton City Council","http://opendatacommunities.org/id/metropolitan-district-council/wolverhampton","Johnston Sweepers Limited","65257602","90","Services - Professional Fees","190311788","15/02/2017","Fleet Services","Fleet Management","R4400"
"Wolverhampton City Council","http://opendatacommunities.org/id/metropolitan-district-council/wolverhampton","Johnston Sweepers Limited","61462983.2","32.01","Equipment - Purchase","190311786","15/02/2017","Fleet Services","Fleet Management","R4000"
"Wolverhampton City Council","http://opendatacommunities.org/id/metropolitan-district-council/wolverhampton","Johnston Sweepers Limited","63277870","-32.01","Equipment - Purchase","190311787","15/02/2017","Fleet Services","Fleet Management","R4000"
"Wolverhampton City Council","http://opendatacommunities.org/id/metropolitan-district-council/wolverhampton","Johnston Sweepers Limited","65256108","142","Services - Professional Fees","190307986","03/02/2017","Fleet Services","Fleet Management","R4400"
"Wolverhampton City Council","http://opendatacommunities.org/id/metropolitan-district-council/wolverhampton","Johnston Sweepers Limited","65256108","6","Services - Professional Fees","190307986","03/02/2017","Fleet Services","Fleet Management","R4400"
"Wolverhampton City Council","http://opendatacommunities.org/id/metropolitan-district-council/wolverhampton","Johnston Sweepers Limited","65256108","150","Services - Professional Fees","190307986","03/02/2017","Fleet Services","Fleet Management","R4400"
"Wolverhampton City Council","http://opendatacommunities.org/id/metropolitan-district-council/wolverhampton","Johnston Sweepers Limited","65253969","142","Services - Professional Fees","190307985","03/02/2017","Fleet Services","Fleet Management","R4400"
"Wolverhampton City Council","http://opendatacommunities.org/id/metropolitan-district-council/wolverhampton","Johnston Sweepers Limited","65253969","75","Services - Professional Fees","190307985","03/02/2017","Fleet Services","Fleet Management","R4400"
"Wolverhampton City Council","http://opendatacommunities.org/id/metropolitan-district-council/wolverhampton","Johnston Sweepers Limited","65253969","6","Services - Professional Fees","190307985","03/02/2017","Fleet Services","Fleet Management","R4400"
"Wolverhampton City Council","http://opendatacommunities.org/id/metropolitan-district-council/wolverhampton","Johnston Sweepers Limited","65253969","230.14","Services - Professional Fees","190307985","03/02/2017","Fleet Services","Fleet Management","R4400"
"Wolverhampton City Council","http://opendatacommunities.org/id/metropolitan-district-council/wolverhampton","Johnston Sweepers Limited","65251796","3","Services - Professional Fees","190307984","03/02/2017","Fleet Services","Fleet Management","R4400"
"Wolverhampton City Council","http://opendatacommunities.org/id/metropolitan-district-council/wolverhampton","Johnston Sweepers Limited","65251796","150","Services - Professional Fees","190307984","03/02/2017","Fleet Services","Fleet Management","R4400"
"Wolverhampton City Council","http://opendatacommunities.org/id/metropolitan-district-council/wolverhampton","Johnston Sweepers Limited","65256111","35.38","Services - Professional Fees","190307987","03/02/2017","Fleet Services","Fleet Management","R4400"
"Wolverhampton City Council","http://opendatacommunities.org/id/metropolitan-district-council/wolverhampton","Johnston Sweepers Limited","65256111","142","Services - Professional Fees","190307987","03/02/2017","Fleet Services","Fleet Management","R4400"
"Wolverhampton City Council","http://opendatacommunities.org/id/metropolitan-district-council/wolverhampton","Johnston Sweepers Limited","65256111","15","Services - Professional Fees","190307987","03/02/2017","Fleet Services","Fleet Management","R4400"
"Wolverhampton City Council","http://opendatacommunities.org/id/metropolitan-district-council/wolverhampton","Johnston Sweepers Limited","65256111","480","Services - Professional Fees","190307987","03/02/2017","Fleet Services","Fleet Management","R4400"
"Wolverhampton City Council","http://opendatacommunities.org/id/metropolitan-district-council/wolverhampton","Johnston Sweepers Limited","61467456","26.54","Equipment - Purchase","190307983","03/02/2017","Fleet Services","Fleet Management","R4000"
"Wolverhampton City Council","http://opendatacommunities.org/id/metropolitan-district-council/wolverhampton","Johnston Sweepers Limited","61467456","19.74","Equipment - Purchase","190307983","03/02/2017","Fleet Services","Fleet Management","R4000"
"Wolverhampton City Council","http://opendatacommunities.org/id/metropolitan-district-council/wolverhampton","Johnston Sweepers Limited","61467456","81.93","Equipment - Purchase","190307983","03/02/2017","Fleet Services","Fleet Management","R4000"
"Wolverhampton City Council","http://opendatacommunities.org/id/metropolitan-district-council/wolverhampton","Johnston Sweepers Limited","61467456","556.6","Equipment - Purchase","190307983","03/02/2017","Fleet Services","Fleet Management","R4000"
"Wolverhampton City Council","http://opendatacommunities.org/id/metropolitan-district-council/wolverhampton","Johnston Sweepers Limited","61467456","31.3","Equipment - Purchase","190307983","03/02/2017","Fleet Services","Fleet Management","R4000"
"Wolverhampton City Council","http://opendatacommunities.org/id/metropolitan-district-council/wolverhampton","Johnston Sweepers Limited","61467456","0.95","Equipment - Purchase","190307983","03/02/2017","Fleet Services","Fleet Management","R4000"
"Wolverhampton City Council","http://opendatacommunities.org/id/metropolitan-district-council/wolverhampton","Johnston Sweepers Limited","61468614","99.48","Equipment - Purchase","190309527","08/02/2017","Fleet Services","Fleet Management","R4000"
"Wolverhampton City Council","http://opendatacommunities.org/id/metropolitan-district-council/wolverhampton","Johnston Sweepers Limited","61468614","77.41","Equipment - Purchase","190309527","08/02/2017","Fleet Services","Fleet Management","R4000"
"Wolverhampton City Council","http://opendatacommunities.org/id/metropolitan-district-council/wolverhampton","Johnston Sweepers Limited","61468646","32.48","Equipment - Purchase","190309528","08/02/2017","Fleet Services","Fleet Management","R4000"
"Wolverhampton City Council","http://opendatacommunities.org/id/metropolitan-district-council/wolverhampton","Johnston Sweepers Limited","61468646","15.52","Equipment - Purchase","190309528","08/02/2017","Fleet Services","Fleet Management","R4000"
"Wolverhampton City Council","http://opendatacommunities.org/id/metropolitan-district-council/wolverhampton","Johnston Sweepers Limited","61464833","839.65","Equipment - Purchase","190309524","08/02/2017","Fleet Services","Fleet Management","R4000"
"Wolverhampton City Council","http://opendatacommunities.org/id/metropolitan-district-council/wolverhampton","Johnston Sweepers Limited","61468408","25.44","Equipment - Purchase","190309525","08/02/2017","Fleet Services","Fleet Management","R4000"
"Wolverhampton City Council","http://opendatacommunities.org/id/metropolitan-district-council/wolverhampton","Johnston Sweepers Limited","61468408","46.38","Equipment - Purchase","190309525","08/02/2017","Fleet Services","Fleet Management","R4000"
"Wolverhampton City Council","http://opendatacommunities.org/id/metropolitan-district-council/wolverhampton","Johnston Sweepers Limited","61468408","22.76","Equipment - Purchase","190309525","08/02/2017","Fleet Services","Fleet Management","R4000"
"Wolverhampton City Council","http://opendatacommunities.org/id/metropolitan-district-council/wolverhampton","Johnston Sweepers Limited","61468408","52.46","Equipment - Purchase","190309525","08/02/2017","Fleet Services","Fleet Management","R4000"
"Wolverhampton City Council","http://opendatacommunities.org/id/metropolitan-district-council/wolverhampton","Johnston Sweepers Limited","61468408","44.34","Equipment - Purchase","190309525","08/02/2017","Fleet Services","Fleet Management","R4000"
"Wolverhampton City Council","http://opendatacommunities.org/id/metropolitan-district-council/wolverhampton","Johnston Sweepers Limited","61468408","74.18","Equipment - Purchase","190309525","08/02/2017","Fleet Services","Fleet Management","R4000"
"Wolverhampton City Council","http://opendatacommunities.org/id/metropolitan-district-council/wolverhampton","Johnston Sweepers Limited","61468408","26.48","Equipment - Purchase","190309525","08/02/2017","Fleet Services","Fleet Management","R4000"
"Wolverhampton City Council","http://opendatacommunities.org/id/metropolitan-district-council/wolverhampton","Johnston Sweepers Limited","61468663","71.48","Equipment - Purchase","190309529","08/02/2017","Fleet Services","Fleet Management","R4000"
"Wolverhampton City Council","http://opendatacommunities.org/id/metropolitan-district-council/wolverhampton","Johnston Sweepers Limited","61458575","220.81","Equipment - Purchase","190309520","08/02/2017","Fleet Services","Fleet Management","R4000"
"Wolverhampton City Council","http://opendatacommunities.org/id/metropolitan-district-council/wolverhampton","Johnston Sweepers Limited","61464630","36.72","Equipment - Purchase","190309521","08/02/2017","Fleet Services","Fleet Management","R4000"
"Wolverhampton City Council","http://opendatacommunities.org/id/metropolitan-district-council/wolverhampton","Johnston Sweepers Limited","61464741","3.6","Equipment - Purchase","190309523","08/02/2017","Fleet Services","Fleet Management","R4000"
"Wolverhampton City Council","http://opendatacommunities.org/id/metropolitan-district-council/wolverhampton","Johnston Sweepers Limited","61464741","39.1","Equipment - Purchase","190309523","08/02/2017","Fleet Services","Fleet Management","R4000"
"Wolverhampton City Council","http://opendatacommunities.org/id/metropolitan-district-council/wolverhampton","Johnston Sweepers Limited","63277866","-839.65","Equipment - Purchase","190309530","08/02/2017","Fleet Services","Fleet Management","R4000"
"Wolverhampton City Council","http://opendatacommunities.org/id/metropolitan-district-council/wolverhampton","Johnston Sweepers Limited","61464650","1,679.30","Equipment - Purchase","190309522","08/02/2017","Fleet Services","Fleet Management","R4000"
"Wolverhampton City Council","http://opendatacommunities.org/id/metropolitan-district-council/wolverhampton","Johnston Sweepers Limited","61464650","378.52","Equipment - Purchase","190309522","08/02/2017","Fleet Services","Fleet Management","R4000"
"Wolverhampton City Council","http://opendatacommunities.org/id/metropolitan-district-council/wolverhampton","Johnston Sweepers Limited","61464650","378.52","Equipment - Purchase","190309522","08/02/2017","Fleet Services","Fleet Management","R4000"
"Wolverhampton City Council","http://opendatacommunities.org/id/metropolitan-district-council/wolverhampton","Johnston Sweepers Limited","61464650","121.87","Equipment - Purchase","190309522","08/02/2017","Fleet Services","Fleet Management","R4000"
"Wolverhampton City Council","http://opendatacommunities.org/id/metropolitan-district-council/wolverhampton","Johnston Sweepers Limited","61468410","32.48","Equipment - Purchase","190309526","08/02/2017","Fleet Services","Fleet Management","R4000"
"Wolverhampton City Council","http://opendatacommunities.org/id/metropolitan-district-council/wolverhampton","Johnston Sweepers Limited","61468410","412.91","Equipment - Purchase","190309526","08/02/2017","Fleet Services","Fleet Management","R4000"
"Wolverhampton City Council","http://opendatacommunities.org/id/metropolitan-district-council/wolverhampton","Johnston Sweepers Limited","61468410","15.52","Equipment - Purchase","190309526","08/02/2017","Fleet Services","Fleet Management","R4000"
"Wolverhampton City Council","http://opendatacommunities.org/id/metropolitan-district-council/wolverhampton","Johnston Sweepers Limited","61468410","3.6","Equipment - Purchase","190309526","08/02/2017","Fleet Services","Fleet Management","R4000"
"Wolverhampton City Council","http://opendatacommunities.org/id/metropolitan-district-council/wolverhampton","Johnston Sweepers Limited","61466399","37.57","Equipment - Purchase","190307595","03/02/2017","Fleet Services","Fleet Management","R4000"
"Wolverhampton City Council","http://opendatacommunities.org/id/metropolitan-district-council/wolverhampton","Johnston Sweepers Limited","61464933","167.42","Equipment - Purchase","190307586","03/02/2017","Fleet Services","Fleet Management","R4000"
"Wolverhampton City Council","http://opendatacommunities.org/id/metropolitan-district-council/wolverhampton","Johnston Sweepers Limited","61464933","14.46","Equipment - Purchase","190307586","03/02/2017","Fleet Services","Fleet Management","R4000"
"Wolverhampton City Council","http://opendatacommunities.org/id/metropolitan-district-council/wolverhampton","Johnston Sweepers Limited","61466174","5.76","Equipment - Purchase","190307593","03/02/2017","Fleet Services","Fleet Management","R4000"
"Wolverhampton City Council","http://opendatacommunities.org/id/metropolitan-district-council/wolverhampton","Johnston Sweepers Limited","61466174","9","Equipment - Purchase","190307593","03/02/2017","Fleet Services","Fleet Management","R4000"
"Wolverhampton City Council","http://opendatacommunities.org/id/metropolitan-district-council/wolverhampton","Johnston Sweepers Limited","61465304","230.1","Equipment - Purchase","190307588","03/02/2017","Fleet Services","Fleet Management","R4000"
"Wolverhampton City Council","http://opendatacommunities.org/id/metropolitan-district-council/wolverhampton","Johnston Sweepers Limited","61465384","264","Equipment - Purchase","190307589","03/02/2017","Fleet Services","Fleet Management","R4000"
"Wolverhampton City Council","http://opendatacommunities.org/id/metropolitan-district-council/wolverhampton","Johnston Sweepers Limited","61466678","234.47","Equipment - Purchase","190307596","03/02/2017","Fleet Services","Fleet Management","R4000"
"Wolverhampton City Council","http://opendatacommunities.org/id/metropolitan-district-council/wolverhampton","Johnston Sweepers Limited","61466678","14.35","Equipment - Purchase","190307596","03/02/2017","Fleet Services","Fleet Management","R4000"
"Wolverhampton City Council","http://opendatacommunities.org/id/metropolitan-district-council/wolverhampton","Johnston Sweepers Limited","61464372","33.46","Equipment - Purchase","190307584","03/02/2017","Fleet Services","Fleet Management","R4000"
"Wolverhampton City Council","http://opendatacommunities.org/id/metropolitan-district-council/wolverhampton","Johnston Sweepers Limited","61464372","15.27","Equipment - Purchase","190307584","03/02/2017","Fleet Services","Fleet Management","R4000"
"Wolverhampton City Council","http://opendatacommunities.org/id/metropolitan-district-council/wolverhampton","Johnston Sweepers Limited","61465415","54.6","Equipment - Purchase","190307590","03/02/2017","Fleet Services","Fleet Management","R4000"
"Wolverhampton City Council","http://opendatacommunities.org/id/metropolitan-district-council/wolverhampton","Johnston Sweepers Limited","61465415","3.52","Equipment - Purchase","190307590","03/02/2017","Fleet Services","Fleet Management","R4000"
"Wolverhampton City Council","http://opendatacommunities.org/id/metropolitan-district-council/wolverhampton","Johnston Sweepers Limited","61465415","2.2","Equipment - Purchase","190307590","03/02/2017","Fleet Services","Fleet Management","R4000"
"Wolverhampton City Council","http://opendatacommunities.org/id/metropolitan-district-council/wolverhampton","Johnston Sweepers Limited","61465813","38.62","Equipment - Purchase","190307591","03/02/2017","Fleet Services","Fleet Management","R4000"
"Wolverhampton City Council","http://opendatacommunities.org/id/metropolitan-district-council/wolverhampton","Johnston Sweepers Limited","61465813","105.64","Equipment - Purchase","190307591","03/02/2017","Fleet Services","Fleet Management","R4000"
"Wolverhampton City Council","http://opendatacommunities.org/id/metropolitan-district-council/wolverhampton","Johnston Sweepers Limited","61466312","13.52","Equipment - Purchase","190307594","03/02/2017","Fleet Services","Fleet Management","R4000"
"Wolverhampton City Council","http://opendatacommunities.org/id/metropolitan-district-council/wolverhampton","Johnston Sweepers Limited","61466312","4.4","Equipment - Purchase","190307594","03/02/2017","Fleet Services","Fleet Management","R4000"
"Wolverhampton City Council","http://opendatacommunities.org/id/metropolitan-district-council/wolverhampton","Johnston Sweepers Limited","61466312","52.18","Equipment - Purchase","190307594","03/02/2017","Fleet Services","Fleet Management","R4000"
"Wolverhampton City Council","http://opendatacommunities.org/id/metropolitan-district-council/wolverhampton","Johnston Sweepers Limited","61465157","76.59","Equipment - Purchase","190307587","03/02/2017","Fleet Services","Fleet Management","R4000"
"Wolverhampton City Council","http://opendatacommunities.org/id/metropolitan-district-council/wolverhampton","Johnston Sweepers Limited","61465157","396.75","Equipment - Purchase","190307587","03/02/2017","Fleet Services","Fleet Management","R4000"
"Wolverhampton City Council","http://opendatacommunities.org/id/metropolitan-district-council/wolverhampton","Johnston Sweepers Limited","61465887","0.58","Equipment - Purchase","190307592","03/02/2017","Fleet Services","Fleet Management","R4000"
"Wolverhampton City Council","http://opendatacommunities.org/id/metropolitan-district-council/wolverhampton","Johnston Sweepers Limited","61465887","111.52","Equipment - Purchase","190307592","03/02/2017","Fleet Services","Fleet Management","R4000"
"Wolverhampton City Council","http://opendatacommunities.org/id/metropolitan-district-council/wolverhampton","Johnston Sweepers Limited","61466933","26.72","Equipment - Purchase","190307597","03/02/2017","Fleet Services","Fleet Management","R4000"
"Wolverhampton City Council","http://opendatacommunities.org/id/metropolitan-district-council/wolverhampton","Johnston Sweepers Limited","61466933","17.3","Equipment - Purchase","190307597","03/02/2017","Fleet Services","Fleet Management","R4000"
"Wolverhampton City Council","http://opendatacommunities.org/id/metropolitan-district-council/wolverhampton","Johnston Sweepers Limited","61466933","20.97","Equipment - Purchase","190307597","03/02/2017","Fleet Services","Fleet Management","R4000"
"Wolverhampton City Council","http://opendatacommunities.org/id/metropolitan-district-council/wolverhampton","Johnston Sweepers Limited","61467196","1.74","Equipment - Purchase","190307598","03/02/2017","Fleet Services","Fleet Management","R4000"
"Wolverhampton City Council","http://opendatacommunities.org/id/metropolitan-district-council/wolverhampton","Johnston Sweepers Limited","61464798","111.52","Equipment - Purchase","190307585","03/02/2017","Fleet Services","Fleet Management","R4000"
"Wolverhampton City Council","http://opendatacommunities.org/id/metropolitan-district-council/wolverhampton","Johnston Sweepers Limited","61464798","2.32","Equipment - Purchase","190307585","03/02/2017","Fleet Services","Fleet Management","R4000"
"Wolverhampton City Council","http://opendatacommunities.org/id/metropolitan-district-council/wolverhampton","Johnston Sweepers Limited","61469143","1.47","Equipment - Purchase","190310322","12/02/2017","Fleet Services","Fleet Management","R4000"
"Wolverhampton City Council","http://opendatacommunities.org/id/metropolitan-district-council/wolverhampton","Johnston Sweepers Limited","61469143","55.78","Equipment - Purchase","190310322","12/02/2017","Fleet Services","Fleet Management","R4000"
"Wolverhampton City Council","http://opendatacommunities.org/id/metropolitan-district-council/wolverhampton","Johnston Sweepers Limited","61469143","195.16","Equipment - Purchase","190310322","12/02/2017","Fleet Services","Fleet Management","R4000"
"Wolverhampton City Council","http://opendatacommunities.org/id/metropolitan-district-council/wolverhampton","Johnston Sweepers Limited","61469143","0.88","Equipment - Purchase","190310322","12/02/2017","Fleet Services","Fleet Management","R4000"
"Wolverhampton City Council","http://opendatacommunities.org/id/metropolitan-district-council/wolverhampton","Johnston Sweepers Limited","61469143","43.25","Equipment - Purchase","190310322","12/02/2017","Fleet Services","Fleet Management","R4000"
"Wolverhampton City Council","http://opendatacommunities.org/id/metropolitan-district-council/wolverhampton","Johnston Sweepers Limited","61469143","36.13","Equipment - Purchase","190310322","12/02/2017","Fleet Services","Fleet Management","R4000"
"Wolverhampton City Council","http://opendatacommunities.org/id/metropolitan-district-council/wolverhampton","Johnston Sweepers Limited","61469143","63.14","Equipment - Purchase","190310322","12/02/2017","Fleet Services","Fleet Management","R4000"
"Wolverhampton City Council","http://opendatacommunities.org/id/metropolitan-district-council/wolverhampton","Johnston Sweepers Limited","61469143","7.65","Equipment - Purchase","190310322","12/02/2017","Fleet Services","Fleet Management","R4000"
"Wolverhampton City Council","http://opendatacommunities.org/id/metropolitan-district-council/wolverhampton","Johnston Sweepers Limited","61469143","13.94","Equipment - Purchase","190310322","12/02/2017","Fleet Services","Fleet Management","R4000"
"Wolverhampton City Council","http://opendatacommunities.org/id/metropolitan-district-council/wolverhampton","Johnston Sweepers Limited","61469143","28.28","Equipment - Purchase","190310322","12/02/2017","Fleet Services","Fleet Management","R4000"
"Wolverhampton City Council","http://opendatacommunities.org/id/metropolitan-district-council/wolverhampton","Johnston Sweepers Limited","61468407","51.08","Equipment - Purchase","190310320","12/02/2017","Fleet Services","Fleet Management","R4000"
"Wolverhampton City Council","http://opendatacommunities.org/id/metropolitan-district-council/wolverhampton","Johnston Sweepers Limited","61468407","216.1","Equipment - Purchase","190310320","12/02/2017","Fleet Services","Fleet Management","R4000"
"Wolverhampton City Council","http://opendatacommunities.org/id/metropolitan-district-council/wolverhampton","Johnston Sweepers Limited","61468407","26.72","Equipment - Purchase","190310320","12/02/2017","Fleet Services","Fleet Management","R4000"
"Wolverhampton City Council","http://opendatacommunities.org/id/metropolitan-district-council/wolverhampton","Johnston Sweepers Limited","61468407","17.3","Equipment - Purchase","190310320","12/02/2017","Fleet Services","Fleet Management","R4000"
"Wolverhampton City Council","http://opendatacommunities.org/id/metropolitan-district-council/wolverhampton","Johnston Sweepers Limited","61468407","9.88","Equipment - Purchase","190310320","12/02/2017","Fleet Services","Fleet Management","R4000"
"Wolverhampton City Council","http://opendatacommunities.org/id/metropolitan-district-council/wolverhampton","Johnston Sweepers Limited","61468407","105.64","Equipment - Purchase","190310320","12/02/2017","Fleet Services","Fleet Management","R4000"
"Wolverhampton City Council","http://opendatacommunities.org/id/metropolitan-district-council/wolverhampton","Jones Skips (Wolverhampton) Limited","31845","170","TPP - Waste Disposal","130157525","12/02/2017","Street Lighting","Street Lighting Maintenance","R5003"
"Wolverhampton City Council","http://opendatacommunities.org/id/metropolitan-district-council/wolverhampton","Jones Skips (Wolverhampton) Limited","31843","170","TPP - Waste Disposal","130156907","08/02/2017","Early Intervention","EIP Locality 2 � Bilston/Rocket Pool","R5003"
"Wolverhampton City Council","http://opendatacommunities.org/id/metropolitan-district-council/wolverhampton","Jones Skips (Wolverhampton) Limited","31841","90","TPP - Waste Disposal","130156906","15/02/2017","Child Protection","CIN/CP S17  SW Unit - Area 3","R5003"
"Wolverhampton City Council","http://opendatacommunities.org/id/metropolitan-district-council/wolverhampton","Jones Skips (Wolverhampton) Limited","32339","170","TPP - Waste Disposal","130158633","17/02/2017","Early Intervention","EIP Locality 1 - Eastfields","R5003"
"Wolverhampton City Council","http://opendatacommunities.org/id/metropolitan-district-council/wolverhampton","Jones Skips (Wolverhampton) Limited","31842","13,764.24","TPP - Waste Disposal","130158412","17/02/2017","Environmental Maintenance","Ground Maintenance East","R5003"
"Wolverhampton City Council","http://opendatacommunities.org/id/metropolitan-district-council/wolverhampton","Jones Springs (Eng)Limited","21406","425","Equipment - Purchase","190312432","17/02/2017","Fleet Services","Fleet Management","R4000"
"Wolverhampton City Council","http://opendatacommunities.org/id/metropolitan-district-council/wolverhampton","Jones Springs (Eng)Limited","21406","60","Equipment - Purchase","190312432","17/02/2017","Fleet Services","Fleet Management","R4000"
"Wolverhampton City Council","http://opendatacommunities.org/id/metropolitan-district-council/wolverhampton","Jones Springs (Eng)Limited","21406","310","Equipment - Purchase","190312432","17/02/2017","Fleet Services","Fleet Management","R4000"
"Wolverhampton City Council","http://opendatacommunities.org/id/metropolitan-district-council/wolverhampton","Jones Springs (Eng)Limited","21406","48","Equipment - Purchase","190312432","17/02/2017","Fleet Services","Fleet Management","R4000"
"Wolverhampton City Council","http://opendatacommunities.org/id/metropolitan-district-council/wolverhampton","Jones Springs (Eng)Limited","21121","295","Equipment - Purchase","190307579","03/02/2017","Fleet Services","Fleet Management","R4000"
"Wolverhampton City Council","http://opendatacommunities.org/id/metropolitan-district-council/wolverhampton","Jones Springs (Eng)Limited","21121","375","Equipment - Purchase","190307579","03/02/2017","Fleet Services","Fleet Management","R4000"
"Wolverhampton City Council","http://opendatacommunities.org/id/metropolitan-district-council/wolverhampton","Jones Springs (Eng)Limited","21151","425","Equipment - Purchase","190307580","03/02/2017","Fleet Services","Fleet Management","R4000"
"Wolverhampton City Council","http://opendatacommunities.org/id/metropolitan-district-council/wolverhampton","Jones Springs (Eng)Limited","21151","60","Equipment - Purchase","190307580","03/02/2017","Fleet Services","Fleet Management","R4000"
"Wolverhampton City Council","http://opendatacommunities.org/id/metropolitan-district-council/wolverhampton","Jones Springs (Eng)Limited","21379","850","Equipment - Purchase","190311165","15/02/2017","Fleet Services","Fleet Management","R4000"
"Wolverhampton City Council","http://opendatacommunities.org/id/metropolitan-district-council/wolverhampton","Jones Springs (Eng)Limited","21379","120","Equipment - Purchase","190311165","15/02/2017","Fleet Services","Fleet Management","R4000"
"Wolverhampton City Council","http://opendatacommunities.org/id/metropolitan-district-council/wolverhampton","K Sedgebeer","36","2,000.00","Services - Professional Fees","130159274","24/02/2017","Standards and Vulnerable Pupils","Music Support Team","R4400"
"Wolverhampton City Council","http://opendatacommunities.org/id/metropolitan-district-council/wolverhampton","Kate Cairns Associates Limited","1965","189","Training Expenses","130158233","15/02/2017","Looked After Children","Pupil Premium","R1650"
"Wolverhampton City Council","http://opendatacommunities.org/id/metropolitan-district-council/wolverhampton","Keith Carrier & Son","171384","27","Services - Security","130154507","01/02/2017","Specialist Support","Upper Pendeford Farm Short Breaks Centre","R4405"
"Wolverhampton City Council","http://opendatacommunities.org/id/metropolitan-district-council/wolverhampton","Keith Carrier & Son","171394","27","Services - Security","130156085","12/02/2017","Specialist Support","Upper Pendeford Farm Short Breaks Centre","R4405"
"Wolverhampton City Council","http://opendatacommunities.org/id/metropolitan-district-council/wolverhampton","Kenton Research Limited","OP/1022838","500","Computing - Internet","130157531","12/02/2017","ICTS","Strategic ICTS (ICT Service Budget)","R4537"
"Wolverhampton City Council","http://opendatacommunities.org/id/metropolitan-district-council/wolverhampton","Kenton Research Limited","OP/1022839","672.5","Computing - Internet","130157532","12/02/2017","ICTS","Strategic ICTS (ICT Service Budget)","R4537"
"Wolverhampton City Council","http://opendatacommunities.org/id/metropolitan-district-council/wolverhampton","Kenton Research Limited","OP/1022841","720","Computing - Internet","130157533","12/02/2017","ICTS","Strategic ICTS (ICT Service Budget)","R4537"
"Wolverhampton City Council","http://opendatacommunities.org/id/metropolitan-district-council/wolverhampton","Kenton Research Limited","OP/1022836","782.5","Computing - Internet","130157529","12/02/2017","ICTS","Strategic ICTS (ICT Service Budget)","R4537"
"Wolverhampton City Council","http://opendatacommunities.org/id/metropolitan-district-council/wolverhampton","Kenton Research Limited","OP/1022835","1,518.00","Computing - Internet","130157528","12/02/2017","ICTS","Strategic ICTS (ICT Service Budget)","R4537"
"Wolverhampton City Council","http://opendatacommunities.org/id/metropolitan-district-council/wolverhampton","Kenton Research Limited","OP/1022837","2,900.00","Computing - Internet","130157530","12/02/2017","ICTS","Strategic ICTS (ICT Service Budget)","R4537"
"Wolverhampton City Council","http://opendatacommunities.org/id/metropolitan-district-council/wolverhampton","Kenton Research Limited","OP/1022843","1,568.75","Computing - Internet","130157534","12/02/2017","ICTS","Strategic ICTS (ICT Service Budget)","R4537"
"Wolverhampton City Council","http://opendatacommunities.org/id/metropolitan-district-council/wolverhampton","Kenton Research Limited","OP/I022779","1,552.00","Computing - Internet","130155060","12/02/2017","ICTS","Strategic ICTS (ICT Service Budget)","R4537"
"Wolverhampton City Council","http://opendatacommunities.org/id/metropolitan-district-council/wolverhampton","Kenton Research Limited","OP/1022827","1,552.00","Computing - Internet","130157526","12/02/2017","ICTS","Strategic ICTS (ICT Service Budget)","R4537"
"Wolverhampton City Council","http://opendatacommunities.org/id/metropolitan-district-council/wolverhampton","Kenton Research Limited","OP/1022844","720","Computing - Internet","130157928","15/02/2017","ICTS","Strategic ICTS (ICT Service Budget)","R4537"
"Wolverhampton City Council","http://opendatacommunities.org/id/metropolitan-district-council/wolverhampton","Kenton Research Limited","OP/I022780","10,872.21","Computing - Internet","130155061","01/02/2017","ICTS","Strategic ICTS (ICT Service Budget)","R4537"
"Wolverhampton City Council","http://opendatacommunities.org/id/metropolitan-district-council/wolverhampton","Kenton Research Limited","OP/I022840","720","Computing - Internet","130158413","17/02/2017","ICTS","Strategic ICTS (ICT Service Budget)","R4537"
"Wolverhampton City Council","http://opendatacommunities.org/id/metropolitan-district-council/wolverhampton","Kenton Research Limited","OP/1022872","782.5","Computing - Internet","130159034","22/02/2017","ICTS","Strategic ICTS (ICT Service Budget)","R4537"
"Wolverhampton City Council","http://opendatacommunities.org/id/metropolitan-district-council/wolverhampton","Kenton Research Limited","OP/I022874","420","Computing - Internet","130159038","22/02/2017","ICTS","Strategic ICTS (ICT Service Budget)","R4537"
"Wolverhampton City Council","http://opendatacommunities.org/id/metropolitan-district-council/wolverhampton","Kenton Research Limited","OP/1022875","481.25","Computing - Internet","130159035","22/02/2017","ICTS","Strategic ICTS (ICT Service Budget)","R4537"
"Wolverhampton City Council","http://opendatacommunities.org/id/metropolitan-district-council/wolverhampton","Kenton Research Limited","OP/I022727","499","Computing - Internet","130154283","01/02/2017","ICTS","Strategic ICTS (ICT Service Budget)","R4537"
"Wolverhampton City Council","http://opendatacommunities.org/id/metropolitan-district-council/wolverhampton","Kiely Bros Limited","17102","70,487.75","TPP - Maintenance on Principal Roads","130156909","17/02/2017","Highways Maintenance","Planned Highways Maintenance","R5700"
"Wolverhampton City Council","http://opendatacommunities.org/id/metropolitan-district-council/wolverhampton","Kilns & Furnaces Limited","16DEC 073","140","Equipment - R & M","130156554","08/02/2017","Adult Education","The Maltings","R4003"
"Wolverhampton City Council","http://opendatacommunities.org/id/metropolitan-district-council/wolverhampton","Kilns & Furnaces Limited","16DEC 073","25","Equipment - R & M","130156554","08/02/2017","Adult Education","The Maltings","R4003"
"Wolverhampton City Council","http://opendatacommunities.org/id/metropolitan-district-council/wolverhampton","King Highway Products Limited","SI - 026267","6,716.00","Materials","130159526","22/02/2017","Street Lighting","St Lighting Ext Recharges","R4007"
"Wolverhampton City Council","http://opendatacommunities.org/id/metropolitan-district-council/wolverhampton","Kingfisher Environmental Servs Limited","1701508","52.66","R&M - Departmental planned (external)","130157265","12/02/2017","Leisure Services","Central Baths","R2001"
"Wolverhampton City Council","http://opendatacommunities.org/id/metropolitan-district-council/wolverhampton","Kingsmead  School & Technology College","P13669420170220","800","Grant Payments to Individuals","190313799","22/02/2017","Looked After Children","LAC Education Team (LACE)","R6402"
"Wolverhampton City Council","http://opendatacommunities.org/id/metropolitan-district-council/wolverhampton","Kingsmead  School & Technology College","P13669420170220","800","Grant Payments to Individuals","190313799","22/02/2017","Looked After Children","LAC Education Team (LACE)","R6402"
"Wolverhampton City Council","http://opendatacommunities.org/id/metropolitan-district-council/wolverhampton","Kingsmead  School & Technology College","P13669420170220","800","Grant Payments to Individuals","190313799","22/02/2017","Looked After Children","LAC Education Team (LACE)","R6402"
"Wolverhampton City Council","http://opendatacommunities.org/id/metropolitan-district-council/wolverhampton","Kingsmead  School & Technology College","P13669420170220","800","Grant Payments to Individuals","190313799","22/02/2017","Looked After Children","LAC Education Team (LACE)","R6402"
"Wolverhampton City Council","http://opendatacommunities.org/id/metropolitan-district-council/wolverhampton","Kingsmead  School & Technology College","P13669420170220","800","Grant Payments to Individuals","190313799","22/02/2017","Looked After Children","LAC Education Team (LACE)","R6402"
"Wolverhampton City Council","http://opendatacommunities.org/id/metropolitan-district-council/wolverhampton","Konica Minolta Bus.Solutions(UK)Limited.","1129077711","18.07","Photocopier Operating Lease","130155562","24/02/2017","Library Services","Global Budgets","R4304"
"Wolverhampton City Council","http://opendatacommunities.org/id/metropolitan-district-council/wolverhampton","Konica Minolta Bus.Solutions(UK)Limited.","1128932179","8,225.92","Photocopier Operating Lease","130155561","17/02/2017","Adult Education","Service Wide","R4304"
"Wolverhampton City Council","http://opendatacommunities.org/id/metropolitan-district-council/wolverhampton","Konica Minolta Bus.Solutions(UK)Limited.","1126595754","3,412.38","Photocopier Operating Lease","130137494","08/02/2017","Adult Education","Service Wide","R4304"
"Wolverhampton City Council","http://opendatacommunities.org/id/metropolitan-district-council/wolverhampton","Konica Minolta Bus.Solutions(UK)Limited.","1128646747","34,123.72","Photocopier Operating Lease","190306925","01/02/2017","ICTS","Printing","R4304"
"Wolverhampton City Council","http://opendatacommunities.org/id/metropolitan-district-council/wolverhampton","Konica Minolta Bus.Solutions(UK)Limited.","1128388319a","27,903.34","Photocopier Operating Lease","190306926","01/02/2017","ICTS","Printing","R4304"
"Wolverhampton City Council","http://opendatacommunities.org/id/metropolitan-district-council/wolverhampton","Krcs Group PLC","34403","3,070.00","Computing - Purchase of Hardware","130156086","17/02/2017","School Planning & Resources","Head Start (Digital Strand)","R4530"
"Wolverhampton City Council","http://opendatacommunities.org/id/metropolitan-district-council/wolverhampton","Langham:A Div�N Of Gordon Ellis & Co","S1 - 1143460","779.04","Signage and Labels","130154133","03/02/2017","Independent Living Service","Independent Living Service","R4009"
"Wolverhampton City Council","http://opendatacommunities.org/id/metropolitan-district-council/wolverhampton","Lapwing","170978","465.98","Materials","130156087","08/02/2017","Highways Maintenance","Patching","R4007"
"Wolverhampton City Council","http://opendatacommunities.org/id/metropolitan-district-council/wolverhampton","Lapwing","172772","114.5","Materials","130158828","17/02/2017","Highways Maintenance","Planned Highways Maintenance","R4007"
"Wolverhampton City Council","http://opendatacommunities.org/id/metropolitan-district-council/wolverhampton","Learners Council","2-16/17","4,000.00","Catering","130157670","17/02/2017","Adult Education","Service Wide","R4100"
"Wolverhampton City Council","http://opendatacommunities.org/id/metropolitan-district-council/wolverhampton","Lewis Psychology Cic","2845","258","Services - Professional Fees","130154286","15/02/2017","Human Resources","Occupational Health","R4400"
"Wolverhampton City Council","http://opendatacommunities.org/id/metropolitan-district-council/wolverhampton","Lewis Psychology Cic","2852","430","Services - Professional Fees","130154293","15/02/2017","Human Resources","Occupational Health","R4400"
"Wolverhampton City Council","http://opendatacommunities.org/id/metropolitan-district-council/wolverhampton","Lewis Psychology Cic","2853","430","Services - Professional Fees","130154294","15/02/2017","Human Resources","Occupational Health","R4400"
"Wolverhampton City Council","http://opendatacommunities.org/id/metropolitan-district-council/wolverhampton","Lewis Psychology Cic","2843","258","Services - Professional Fees","130154284","15/02/2017","Human Resources","Occupational Health","R4400"
"Wolverhampton City Council","http://opendatacommunities.org/id/metropolitan-district-council/wolverhampton","Lewis Psychology Cic","2844","258","Services - Professional Fees","130154285","15/02/2017","Human Resources","Occupational Health","R4400"
"Wolverhampton City Council","http://opendatacommunities.org/id/metropolitan-district-council/wolverhampton","Lewis Psychology Cic","2850","387","Services - Professional Fees","130154291","15/02/2017","Human Resources","Occupational Health","R4400"
"Wolverhampton City Council","http://opendatacommunities.org/id/metropolitan-district-council/wolverhampton","Lewis Psychology Cic","2851","387","Services - Professional Fees","130154292","15/02/2017","Human Resources","Occupational Health","R4400"
"Wolverhampton City Council","http://opendatacommunities.org/id/metropolitan-district-council/wolverhampton","Lewis Psychology Cic","2846","258","Services - Professional Fees","130154287","15/02/2017","Human Resources","Occupational Health","R4400"
"Wolverhampton City Council","http://opendatacommunities.org/id/metropolitan-district-council/wolverhampton","Lewis Psychology Cic","2847","258","Services - Professional Fees","130154288","15/02/2017","Human Resources","Occupational Health","R4400"
"Wolverhampton City Council","http://opendatacommunities.org/id/metropolitan-district-council/wolverhampton","Lewis Psychology Cic","2848","258","Services - Professional Fees","130154289","15/02/2017","Human Resources","Occupational Health","R4400"
"Wolverhampton City Council","http://opendatacommunities.org/id/metropolitan-district-council/wolverhampton","Lewis Psychology Cic","2849","258","Services - Professional Fees","130154290","15/02/2017","Human Resources","Occupational Health","R4400"
"Wolverhampton City Council","http://opendatacommunities.org/id/metropolitan-district-council/wolverhampton","Lewis Psychology Cic","2854","516","Services - Professional Fees","130154295","15/02/2017","Human Resources","Occupational Health","R4400"
"Wolverhampton City Council","http://opendatacommunities.org/id/metropolitan-district-council/wolverhampton","Lewis�S Medical Supp/Ta Pleskarn Limited","SI050617","135","Materials","130157266","08/02/2017","Leisure Services","Aldersley Leisure Village","R4007"
"Wolverhampton City Council","http://opendatacommunities.org/id/metropolitan-district-council/wolverhampton","Lewis�S Medical Supp/Ta Pleskarn Limited","SI050472","184","Materials","130156911","12/02/2017","Leisure Services","Aldersley Leisure Village","R4007"
"Wolverhampton City Council","http://opendatacommunities.org/id/metropolitan-district-council/wolverhampton","Lewis�S Medical Supp/Ta Pleskarn Limited","SI050235","233.4","Materials","130155563","08/02/2017","Older People Provider Services","Reablement Team","R4007"
"Wolverhampton City Council","http://opendatacommunities.org/id/metropolitan-district-council/wolverhampton","Lodge Tyre Co.Limited","PE004492","46.5","Vehicle Maintenance - Spare Parts","190309570","08/02/2017","Fleet Services","Fleet Management","R3009"
"Wolverhampton City Council","http://opendatacommunities.org/id/metropolitan-district-council/wolverhampton","Lodge Tyre Co.Limited","PE004492","44","Vehicle Maintenance - Spare Parts","190309570","08/02/2017","Fleet Services","Fleet Management","R3009"
"Wolverhampton City Council","http://opendatacommunities.org/id/metropolitan-district-council/wolverhampton","Lodge Tyre Co.Limited","PE004492","44","Vehicle Maintenance - Spare Parts","190309570","08/02/2017","Fleet Services","Fleet Management","R3009"
"Wolverhampton City Council","http://opendatacommunities.org/id/metropolitan-district-council/wolverhampton","Lodge Tyre Co.Limited","PE004492","53","Vehicle Maintenance - Spare Parts","190309570","08/02/2017","Fleet Services","Fleet Management","R3009"
"Wolverhampton City Council","http://opendatacommunities.org/id/metropolitan-district-council/wolverhampton","Lodge Tyre Co.Limited","PE004492","106","Vehicle Maintenance - Spare Parts","190309570","08/02/2017","Fleet Services","Fleet Management","R3009"
"Wolverhampton City Council","http://opendatacommunities.org/id/metropolitan-district-council/wolverhampton","Lodge Tyre Co.Limited","PE004492","15","Vehicle Maintenance - Spare Parts","190309570","08/02/2017","Fleet Services","Fleet Management","R3009"
"Wolverhampton City Council","http://opendatacommunities.org/id/metropolitan-district-council/wolverhampton","Lodge Tyre Co.Limited","PE004492","12","Vehicle Maintenance - Spare Parts","190309570","08/02/2017","Fleet Services","Fleet Management","R3009"
"Wolverhampton City Council","http://opendatacommunities.org/id/metropolitan-district-council/wolverhampton","Lodge Tyre Co.Limited","PE004492","12","Vehicle Maintenance - Spare Parts","190309570","08/02/2017","Fleet Services","Fleet Management","R3009"
"Wolverhampton City Council","http://opendatacommunities.org/id/metropolitan-district-council/wolverhampton","Lodge Tyre Co.Limited","PE004492","12","Vehicle Maintenance - Spare Parts","190309570","08/02/2017","Fleet Services","Fleet Management","R3009"
"Wolverhampton City Council","http://opendatacommunities.org/id/metropolitan-district-council/wolverhampton","Lodge Tyre Co.Limited","PE004492","12","Vehicle Maintenance - Spare Parts","190309570","08/02/2017","Fleet Services","Fleet Management","R3009"
"Wolverhampton City Council","http://opendatacommunities.org/id/metropolitan-district-council/wolverhampton","Lodge Tyre Co.Limited","PE004492","6","Vehicle Maintenance - Spare Parts","190309570","08/02/2017","Fleet Services","Fleet Management","R3009"
"Wolverhampton City Council","http://opendatacommunities.org/id/metropolitan-district-council/wolverhampton","Lodge Tyre Co.Limited","PE004492","6","Vehicle Maintenance - Spare Parts","190309570","08/02/2017","Fleet Services","Fleet Management","R3009"
"Wolverhampton City Council","http://opendatacommunities.org/id/metropolitan-district-council/wolverhampton","Lodge Tyre Co.Limited","PE004492","12","Vehicle Maintenance - Spare Parts","190309570","08/02/2017","Fleet Services","Fleet Management","R3009"
"Wolverhampton City Council","http://opendatacommunities.org/id/metropolitan-district-council/wolverhampton","Lodge Tyre Co.Limited","PE004492","25","Vehicle Maintenance - Spare Parts","190309570","08/02/2017","Fleet Services","Fleet Management","R3009"
"Wolverhampton City Council","http://opendatacommunities.org/id/metropolitan-district-council/wolverhampton","Lodge Tyre Co.Limited","PE004492","25","Vehicle Maintenance - Spare Parts","190309570","08/02/2017","Fleet Services","Fleet Management","R3009"
"Wolverhampton City Council","http://opendatacommunities.org/id/metropolitan-district-council/wolverhampton","Lodge Tyre Co.Limited","PE004492","195","Vehicle Maintenance - Spare Parts","190309570","08/02/2017","Fleet Services","Fleet Management","R3009"
"Wolverhampton City Council","http://opendatacommunities.org/id/metropolitan-district-council/wolverhampton","Lodge Tyre Co.Limited","PE004492","70","Vehicle Maintenance - Spare Parts","190309570","08/02/2017","Fleet Services","Fleet Management","R3009"
"Wolverhampton City Council","http://opendatacommunities.org/id/metropolitan-district-council/wolverhampton","Lodge Tyre Co.Limited","PE004492","3","Vehicle Maintenance - Spare Parts","190309570","08/02/2017","Fleet Services","Fleet Management","R3009"
"Wolverhampton City Council","http://opendatacommunities.org/id/metropolitan-district-council/wolverhampton","Lodge Tyre Co.Limited","PE004492","114","Vehicle Maintenance - Spare Parts","190309570","08/02/2017","Fleet Services","Fleet Management","R3009"
"Wolverhampton City Council","http://opendatacommunities.org/id/metropolitan-district-council/wolverhampton","Lodge Tyre Co.Limited","PE004492","171","Vehicle Maintenance - Spare Parts","190309570","08/02/2017","Fleet Services","Fleet Management","R3009"
"Wolverhampton City Council","http://opendatacommunities.org/id/metropolitan-district-council/wolverhampton","Lodge Tyre Co.Limited","PE004492","228","Vehicle Maintenance - Spare Parts","190309570","08/02/2017","Fleet Services","Fleet Management","R3009"
"Wolverhampton City Council","http://opendatacommunities.org/id/metropolitan-district-council/wolverhampton","Lodge Tyre Co.Limited","PE004492","114","Vehicle Maintenance - Spare Parts","190309570","08/02/2017","Fleet Services","Fleet Management","R3009"
"Wolverhampton City Council","http://opendatacommunities.org/id/metropolitan-district-council/wolverhampton","Lodge Tyre Co.Limited","PE004492","485","Vehicle Maintenance - Spare Parts","190309570","08/02/2017","Fleet Services","Fleet Management","R3009"
"Wolverhampton City Council","http://opendatacommunities.org/id/metropolitan-district-council/wolverhampton","Lodge Tyre Co.Limited","PE004492","485","Vehicle Maintenance - Spare Parts","190309570","08/02/2017","Fleet Services","Fleet Management","R3009"
"Wolverhampton City Council","http://opendatacommunities.org/id/metropolitan-district-council/wolverhampton","Lodge Tyre Co.Limited","PE004492","15","Vehicle Maintenance - Spare Parts","190309570","08/02/2017","Fleet Services","Fleet Management","R3009"
"Wolverhampton City Council","http://opendatacommunities.org/id/metropolitan-district-council/wolverhampton","Lodge Tyre Co.Limited","PE004492","46.5","Vehicle Maintenance - Spare Parts","190309570","08/02/2017","Fleet Services","Fleet Management","R3009"
"Wolverhampton City Council","http://opendatacommunities.org/id/metropolitan-district-council/wolverhampton","Lodge Tyre Co.Limited","PE004492","93","Vehicle Maintenance - Spare Parts","190309570","08/02/2017","Fleet Services","Fleet Management","R3009"
"Wolverhampton City Council","http://opendatacommunities.org/id/metropolitan-district-council/wolverhampton","Lodge Tyre Co.Limited","PE004492","93","Vehicle Maintenance - Spare Parts","190309570","08/02/2017","Fleet Services","Fleet Management","R3009"
"Wolverhampton City Council","http://opendatacommunities.org/id/metropolitan-district-council/wolverhampton","Lodge Tyre Co.Limited","PE004492","120","Vehicle Maintenance - Spare Parts","190309570","08/02/2017","Fleet Services","Fleet Management","R3009"
"Wolverhampton City Council","http://opendatacommunities.org/id/metropolitan-district-council/wolverhampton","Lodge Tyre Co.Limited","PE004492","120","Vehicle Maintenance - Spare Parts","190309570","08/02/2017","Fleet Services","Fleet Management","R3009"
"Wolverhampton City Council","http://opendatacommunities.org/id/metropolitan-district-council/wolverhampton","Lodge Tyre Co.Limited","PE004492","60","Vehicle Maintenance - Spare Parts","190309570","08/02/2017","Fleet Services","Fleet Management","R3009"
"Wolverhampton City Council","http://opendatacommunities.org/id/metropolitan-district-council/wolverhampton","Lodge Tyre Co.Limited","PE004492","60","Vehicle Maintenance - Spare Parts","190309570","08/02/2017","Fleet Services","Fleet Management","R3009"
"Wolverhampton City Council","http://opendatacommunities.org/id/metropolitan-district-council/wolverhampton","Lodge Tyre Co.Limited","PE004492","50","Vehicle Maintenance - Spare Parts","190309570","08/02/2017","Fleet Services","Fleet Management","R3009"
"Wolverhampton City Council","http://opendatacommunities.org/id/metropolitan-district-council/wolverhampton","Lodge Tyre Co.Limited","PE004492","265","Vehicle Maintenance - Spare Parts","190309570","08/02/2017","Fleet Services","Fleet Management","R3009"
"Wolverhampton City Council","http://opendatacommunities.org/id/metropolitan-district-council/wolverhampton","Lodge Tyre Co.Limited","PE004492","60","Vehicle Maintenance - Spare Parts","190309570","08/02/2017","Fleet Services","Fleet Management","R3009"
"Wolverhampton City Council","http://opendatacommunities.org/id/metropolitan-district-council/wolverhampton","Lodge Tyre Co.Limited","PE004492","132.5","Vehicle Maintenance - Spare Parts","190309570","08/02/2017","Fleet Services","Fleet Management","R3009"
"Wolverhampton City Council","http://opendatacommunities.org/id/metropolitan-district-council/wolverhampton","Lodge Tyre Co.Limited","PE004492","44","Vehicle Maintenance - Spare Parts","190309570","08/02/2017","Fleet Services","Fleet Management","R3009"
"Wolverhampton City Council","http://opendatacommunities.org/id/metropolitan-district-council/wolverhampton","Lodge Tyre Co.Limited","PE004492","114","Vehicle Maintenance - Spare Parts","190309570","08/02/2017","Fleet Services","Fleet Management","R3009"
